Workbook

Sheet Bid Items
A1: D | C1: ENGINEER'S ESTIMATE / Q2P WORKBOOK | F1: CONSTRUCTION COST ESTIMATE
A2: E | C2: PROJECT MANAGER: RICHARD SHERMO | F2: 2015-06-09 | G2: =ConstructionTotal -> 133209.057
A3: T | B3: CONST. I.D.: 8949-04-78
A4: C S | B4: TITLE: BALDWIN - MENOMONIE
A5: E M | B5: LIMITS: CULVERTS C-55-0037, 0038, & 0039 | H5: COLOR CODE
A6: L E | B6: HIGHWAY: USH 12 | H6: NEW ITEMS
A7: E T | B7: COUNTY: ST. CROIX | F7: PSE Date: | H7: PRE-ESTABLISHED PRICE
A8: S I | B8: PROGRAM CODE: 303 STATE HIGHWAY REHABILITATION | F8: Let Date: | H8: RETIRED
B9: CONCEPT CODE: RESURF RESURFACING | F9: NET C/L MILES: 0.130 | H9: STSP's W/ BID ITEMS
A10: TOTAL | B10: TOTAL BID ITEMS | C10: SCHEDULE OF BID ITEMS WISDOT STANDARD SPECIFICATIONS 2015 EDITION | H10: REVISED ITEM/DESC
A11: =COUNTIF($A$13:$A$2274,"X") -> 40
B12: =COUNTIF($A$13:$A$2274,"X") -> 40 | C12: ITEM DESCRIPTION | D12: QUANTITY | E12: UNIT | F12: UNIT PRICE | G12: COST
B13: 108.3100.S | C13: INCENTIVE/DISINCENTIVE FOR INTERIM COMPLETION OF WORK | E13: CD
B14: 108.4300 | C14: RBC PROGRESS SCHEDULE | E14: EACH
B15: 108.4400 | C15: CPM PROGRESS SCHEDULE | E15: EACH
B16: 201.0105 | C16: CLEARING | E16: STA
B17: 201.0110 | C17: CLEARING | E17: SY
B18: 201.0115 | C18: CLEARING | E18: ACRE
B19: 201.0120 | C19: CLEARING | E19: ID
B20: 201.0205 | C20: GRUBBING | E20: STA
B21: 201.0210 | C21: GRUBBING | E21: SY
B22: 201.0215 | C22: GRUBBING | E22: ACRE
B23: 201.0220 | C23: GRUBBING | E23: ID
B24: 202.0105 | C24: ROADSIDE CLEARING | E24: STA
B25: 202.0110 | C25: ROADSIDE CLEARING | E25: SY
B26: 202.0115 | C26: ROADSIDE CLEARING | E26: ACRE
B27: 203.0100 | C27: REMOVING SMALL PIPE CULVERTS | E27: EACH
A28: x | B28: 203.0200 | C28: REMOVING OLD STRUCTURE (130+21, C-55-0014) | D28: =[0]!TOTAL203.0200_0010+[0]!TOTAL203.0200_0020+[0]!TOTAL203.0200_0030+[0]!TOTAL203.0200_0040+[0]!TOTAL203.0200_0050 -> 1 | E28: LS | F28: 2000 | G28: =IF(A28<>"x","",IF(ISERROR(D28),0,IF(D28="",0,IF(D28=" ",0,IF(D28="<Error>",0,F28*D28))))) -> 2000
B29: 203.0210.S | C29: ABATEMENT OF ASBESTOS CONTAINING MATERIAL (STRUCTURE) | E29: LS
B30: 203.0225.S | C30: DEBRIS CONTAINMENT (STRUCTURE) | E30: LS
B31: 203.0500.S | C31: REMOVING OLD STRUCTURE OVER WATERWAY (STATION) | E31: LS
B32: 203.0600.S | C32: REMOVING OLD STRUCTURE OVER WATERWAY WITH MINIMAL DEBRIS (STATION) | E32: LS
B33: 203.0700.S | C33: REMOVING OLD STRUCTURE OVER WATERWAY WITH DEBRIS CAPTURE SYSTEM (STATION) | E33: LS
A34: x | B34: 204.0100 | C34: REMOVING PAVEMENT | D34: =[0]!TOTAL204.0100_0010+[0]!TOTAL204.0100_0020+[0]!TOTAL204.0100_0030+[0]!TOTAL204.0100_0040+[0]!TOTAL204.0100_0050 -> 222.2222222 | E34: SY | F34: 5 | G34: =IF(A34<>"x","",IF(ISERROR(D34),0,IF(D34="",0,IF(D34=" ",0,IF(D34="<Error>",0,F34*D34))))) -> 1111.111111
B35: 204.0105 | C35: REMOVING PAVEMENT BUTT JOINTS | E35: SY
B36: 204.0109.S | C36: REMOVING CONCRETE SURFACE PARTIAL DEPTH | E36: SF
A37: x | B37: 204.0110 | C37: REMOVING ASPHALTIC SURFACE | D37: =[0]!TOTAL204.0110_0010+[0]!TOTAL204.0110_0020+[0]!TOTAL204.0110_0030+[0]!TOTAL204.0110_0040+[0]!TOTAL204.0110_0050 -> 600 | E37: SY | F37: 4 | G37: =IF(A37<>"x","",IF(ISERROR(D37),0,IF(D37="",0,IF(D37=" ",0,IF(D37="<Error>",0,F37*D37))))) -> 2400
B38: 204.0115 | C38: REMOVING ASPHALTIC SURFACE BUTT JOINTS | E38: SY
B39: 204.0120 | C39: REMOVING ASPHALTIC SURFACE MILLING | E39: SY
B40: 204.0125 | C40: REMOVING ASPHALTIC SURFACE MILLING | E40: TON
B41: 204.0130 | C41: REMOVING CURB | E41: LF
B42: 204.0140 | C42: REMOVING GUTTER | E42: LF
B43: 204.0150 | C43: REMOVING CURB & GUTTER | E43: LF
B44: 204.0155 | C44: REMOVING CONCRETE SIDEWALK | E44: SY
B45: 204.0157 | C45: REMOVING CONCRETE BARRIER | E45: LF
B46: 204.0160 | C46: REMOVING LIP CURB | E46: LF
B47: 204.0165 | C47: REMOVING GUARDRAIL | E47: LF | F47: 3 | G47: =IF(A47<>"x","",IF(ISERROR(D47),0,IF(D47="",0,IF(D47=" ",0,IF(D47="<Error>",0,F47*D47))))) -> 
B48: 204.0170 | C48: REMOVING FENCE | E48: LF
B49: 204.0175 | C49: REMOVING CONCRETE SLOPE PAVING | E49: SY
B50: 204.0180 | C50: REMOVING DELINEATORS AND MARKERS | E50: EACH
B51: 204.0185 | C51: REMOVING MASONRY | E51: CY
B52: 204.0190 | C52: REMOVING SURFACE DRAINS | E52: EACH
B53: 204.0195 | C53: REMOVING CONCRETE BASES | E53: EACH
B54: 204.0200 | C54: REMOVING RAILROAD TRACK | E54: LF
B55: 204.0205 | C55: REMOVING UTILITY POLES | E55: EACH
B56: 204.0210 | C56: REMOVING MANHOLES | E56: EACH
B57: 204.0215 | C57: REMOVING CATCH BASINS | E57: EACH
B58: 204.0220 | C58: REMOVING INLETS | E58: EACH
B59: 204.0225 | C59: REMOVING SEPTIC TANKS | E59: EACH
B60: 204.0230 | C60: REMOVING BUILDING (STATION) | E60: LS
B61: 204.0235 | C61: REMOVING BUILDINGS (PARCEL) | E61: LS
B62: 204.0240 | C62: SITE CLEARANCE (PARCEL) | E62: LS
B63: 204.0245 | C63: REMOVING STORM SEWER (SIZE) | E63: LF
B64: 204.0250 | C64: ABANDONING MANHOLES | E64: EACH
B65: 204.0255 | C65: ABANDONING CATCH BASINS | E65: EACH
B66: 204.0260 | C66: ABANDONING INLETS | E66: EACH
B67: 204.0265 | C67: ABANDONING WELLS | E67: EACH
B68: 204.0270 | C68: ABANDONING CULVERT PIPES | E68: EACH
B69: 204.0275 | C69: CLOSING CULVERT PIPES | E69: EACH
B70: 204.0280 | C70: SEALING PIPES | E70: EACH
B71: 204.0291.S | C71: ABANDONING SEWER | E71: CY
B72: 204.9025.S | C72: REMOVING (ITEM DESCRIPTION) | E72: CF
B73: 204.9035.S | C73: REMOVING (ITEM DESCRIPTION) | E73: CY
B74: 204.9060.S | C74: REMOVING (ITEM DESCRIPTION) | E74: EACH
B75: 204.9070.S | C75: REMOVING (ITEM DESCRIPTION) | E75: GAL
B76: 204.9090.S | C76: REMOVING (ITEM DESCRIPTION) | E76: LF
B77: 204.9105.S | C77: REMOVING (ITEM DESCRIPTION) | E77: LS
B78: 204.9125.S | C78: REMOVING (ITEM DESCRIPTION) | E78: MI
B79: 204.9165.S | C79: REMOVING (ITEM DESCRIPTION) | E79: SF
B80: 204.9170.S | C80: REMOVING (ITEM DESCRIPTION) | E80: STA
B81: 204.9180.S | C81: REMOVING (ITEM DESCRIPTION) | E81: SY
B82: 204.9195.S | C82: REMOVING (ITEM DESCRIPTION) | E82: TON
A83: x | B83: 205.0100 | C83: EXCAVATION COMMON | D83: =[0]!TOTAL205.0100_0010+[0]!TOTAL205.0100_0020+[0]!TOTAL205.0100_0030+[0]!TOTAL205.0100_0040+[0]!TOTAL205.0100_0050 -> 3200 | E83: CY | F83: 12 | G83: =IF(A83<>"x","",IF(ISERROR(D83),0,IF(D83="",0,IF(D83=" ",0,IF(D83="<Error>",0,F83*D83))))) -> 38400
B84: 205.0200 | C84: EXCAVATION ROCK | E84: CY
B85: 205.0300 | C85: EXCAVATION STONE PILES AND STONE FENCES | E85: CY
B86: 205.0400 | C86: EXCAVATION MARSH | E86: CY
B87: 205.0500.S | C87: EXCAVATION AND HAULING OF PETROLEUM CONTAMINATED SOIL | E87: CY
B88: 205.0501.S | C88: EXCAVATION, HAULING, AND DISPOSAL OF PETROLEUM CONTAMINATED SOIL | E88: TON
B89: 205.1300 | C89: PRESPLITTING ROCK | E89: LF
B90: 205.2000.S | C90: SETTLEMENT GAUGES | E90: EACH
B91: 205.3000.S | C91: TEMPORARY EMERGENCY PULLOUTS | E91: EACH
B92: 205.9006.S | C92: GRADING SHAPING & FINISHING FOR BARRIER TERMINALS | E92: EACH
B93: 205.9010.S | C93: GRADING & SHAPING INTERSECTION (LOCATION) | E93: LS
B94: 205.9015.S | C94: GRADING SHAPING & FINISHING INTERSECTION (LOCATION) | E94: LS
B95: 206.1000 | C95: EXCAVATION FOR STRUCTURES BRIDGES (STRUCTURE) | E95: LS
B96: 206.1050.S | C96: UNDERWATER FOUNDATION INSPECTION | E96: EACH
B97: 206.2000 | C97: EXCAVATION FOR STRUCTURES CULVERTS (STRUCTURE) | E97: LS
B98: 206.3000 | C98: EXCAVATION FOR STRUCTURES RETAINING WALLS (STRUCTURE) | E98: LS
B99: 206.4000 | C99: EXCAVATION FOR STRUCTURES STRUCTURAL PLATE PIPE OR PIPE ARCHES (STATION) | E99: LS
B100: 206.5000 | C100: COFFERDAMS (STRUCTURE) | E100: LS
B101: 206.6000.S-RETIRE | C101: RETIRE-TEMPORARY SHORING | E101: SF
B102: 208.0100 | C102: BORROW | E102: CY
B103: 208.1100 | C103: SELECT BORROW | E103: CY
B104: 208.2100.S | C104: FLY ASH FOR SUBGRADE STABILIZATION FURNISHED FURNISHED | E104: TON
B105: 208.2110.S | C105: FLY ASH SUBGRADE STABILIZATION | E105: SY
B106: 209.0100 | C106: BACKFILL GRANULAR | E106: CY
B107: 209.0200.S | C107: BACKFILL CONTROLLED LOW STRENGTH | E107: CY
B108: 209.0300.S | C108: BACKFILL COARSE AGGREGATE (SIZE) | E108: CY
B109: 210.0100 | C109: BACKFILL STRUCTURE | E109: CY
A110: x | B110: 211.0100 | C110: PREPARE FOUNDATION FOR ASPHALTIC PAVING (PROJECT) | D110: =[0]!TOTAL211.0100_0010+[0]!TOTAL211.0100_0020+[0]!TOTAL211.0100_0030+[0]!TOTAL211.0100_0040+[0]!TOTAL211.0100_0050 -> 1 | E110: LS | F110: 5000 | G110: =IF(A110<>"x","",IF(ISERROR(D110),0,IF(D110="",0,IF(D110=" ",0,IF(D110="<Error>",0,F110*D110))))) -> 5000
B111: 211.0200 | C111: PREPARE FOUNDATION FOR CONCRETE PAVEMENT (PROJECT) | E111: LS
B112: 211.0300 | C112: PREPARE FOUNDATION FOR CONCRETE BASE (PROJECT) | E112: LS
B113: 211.0400 | C113: PREPARE FOUNDATION FOR ASPHALTIC SHOULDERS | E113: STA
B114: 211.0500 | C114: PREPARE FOUNDATION FOR BASE AGGREGATE | E114: STA
B115: 213.0100 | C115: FINISHING ROADWAY (PROJECT) | E115: EACH
B116: 214.0100 | C116: OBLITERATING OLD ROAD | E116: STA
A117: x | B117: 305.0110 | C117: BASE AGGREGATE DENSE 3/4-INCH | D117: =[0]!TOTAL305.0110_0010+[0]!TOTAL305.0110_0020+[0]!TOTAL305.0110_0030+[0]!TOTAL305.0110_0040+[0]!TOTAL305.0110_0050 -> 60 | E117: TON | F117: 20 | G117: =IF(A117<>"x","",IF(ISERROR(D117),0,IF(D117="",0,IF(D117=" ",0,IF(D117="<Error>",0,F117*D117))))) -> 1200
B118: 305.0115 | C118: BASE AGGREGATE DENSE 3/4-INCH | E118: CY
A119: x | B119: 305.0120 | C119: BASE AGGREGATE DENSE 1 1/4-INCH | D119: =[0]!TOTAL305.0120_0010+[0]!TOTAL305.0120_0020+[0]!TOTAL305.0120_0030+[0]!TOTAL305.0120_0040+[0]!TOTAL305.0120_0050 -> 60.49382716 | E119: TON | F119: 30 | G119: =IF(A119<>"x","",IF(ISERROR(D119),0,IF(D119="",0,IF(D119=" ",0,IF(D119="<Error>",0,F119*D119))))) -> 1814.814815
B120: 305.0125 | C120: BASE AGGREGATE DENSE 1 1/4-INCH | E120: CY
B121: 305.0130 | C121: BASE AGGREGATE DENSE 3-INCH | E121: TON
B122: 305.0135 | C122: BASE AGGREGATE DENSE 3-INCH | E122: CY
B123: 305.0410 | C123: AGGREGATE DETOURS | E123: TON
B124: 305.0415 | C124: AGGREGATE DETOURS | E124: CY
A125: x | B125: 305.0500 | C125: SHAPING SHOULDERS | D125: =[0]!TOTAL305.0500_0010+[0]!TOTAL305.0500_0020+[0]!TOTAL305.0500_0030+[0]!TOTAL305.0500_0040+[0]!TOTAL305.0500_0050 -> 10.8 | E125: STA | F125: 100 | G125: =IF(A125<>"x","",IF(ISERROR(D125),0,IF(D125="",0,IF(D125=" ",0,IF(D125="<Error>",0,F125*D125))))) -> 1080
B126: 305.0502.S | C126: SHAPING ROADWAY | E126: STA
B127: 305.0504.S | C127: HAULING EXCESS SHOULDER MATERIAL | E127: CY
B128: 306.0110 | C128: SALVAGED ASPHALTIC PAVEMENT BASE | E128: TON
B129: 306.0115 | C129: SALVAGED ASPHALTIC PAVEMENT BASE | E129: CY
B130: 310.0110 | C130: BASE AGGREGATE OPEN GRADED | E130: TON
B131: 310.0115 | C131: BASE AGGREGATE OPEN GRADED | E131: CY
B132: 311.0110 | C132: BREAKER RUN | E132: TON
B133: 311.0115 | C133: BREAKER RUN | E133: CY
B134: 312.0110 | C134: SELECT CRUSHED MATERIAL | E134: TON
B135: 312.0115 | C135: SELECT CRUSHED MATERIAL | E135: CY
B136: 313.0110 | C136: PIT RUN | E136: TON
B137: 313.0115 | C137: PIT RUN | E137: CY
B138: 315.0100 | C138: ASPHALTIC BASE | E138: TON
B139: 315.0200 | C139: ASPHALTIC BASE WIDENING | E139: TON
B140: 320.0105 | C140: CONCRETE BASE 4-INCH | E140: SY
B141: 320.0110 | C141: CONCRETE BASE 4 1/2-INCH | E141: SY
B142: 320.0115 | C142: CONCRETE BASE 5-INCH | E142: SY
B143: 320.0120 | C143: CONCRETE BASE 5 1/2-INCH | E143: SY
B144: 320.0125 | C144: CONCRETE BASE 6-INCH | E144: SY
B145: 320.0130 | C145: CONCRETE BASE 6 1/2-INCH | E145: SY
B146: 320.0135 | C146: CONCRETE BASE 7-INCH | E146: SY
B147: 320.0140 | C147: CONCRETE BASE 7 1/2-INCH | E147: SY
B148: 320.0145 | C148: CONCRETE BASE 8-INCH | E148: SY
B149: 320.0150 | C149: CONCRETE BASE 8 1/2-INCH | E149: SY
B150: 320.0155 | C150: CONCRETE BASE 9-INCH | E150: SY
B151: 320.0160 | C151: CONCRETE BASE 9 1/2-INCH | E151: SY
B152: 320.0165 | C152: CONCRETE BASE 10-INCH | E152: SY
B153: 320.0170 | C153: CONCRETE BASE 10 1/2-INCH | E153: SY
B154: 320.0305 | C154: CONCRETE BASE HES 4-INCH | E154: SY
B155: 320.0310 | C155: CONCRETE BASE HES 4 1/2-INCH | E155: SY
B156: 320.0315 | C156: CONCRETE BASE HES 5-INCH | E156: SY
B157: 320.0320 | C157: CONCRETE BASE HES 5 1/2-INCH | E157: SY
B158: 320.0325 | C158: CONCRETE BASE HES 6-INCH | E158: SY
B159: 320.0330 | C159: CONCRETE BASE HES 6 1/2-INCH | E159: SY
B160: 320.0335 | C160: CONCRETE BASE HES 7-INCH | E160: SY
B161: 320.0340 | C161: CONCRETE BASE HES 7 1/2-INCH | E161: SY
B162: 320.0345 | C162: CONCRETE BASE HES 8-INCH | E162: SY
B163: 320.0350 | C163: CONCRETE BASE HES 8 1/2-INCH | E163: SY
B164: 320.0355 | C164: CONCRETE BASE HES 9-INCH | E164: SY
B165: 320.0360 | C165: CONCRETE BASE HES 9 1/2-INCH | E165: SY
B166: 320.0365 | C166: CONCRETE BASE HES 10-INCH | E166: SY
B167: 320.0370 | C167: CONCRETE BASE HES 10 1/2-INCH | E167: SY
B168: 325.0100 | C168: PULVERIZE AND RELAY | E168: SY
B169: 330.0100 | C169: MILL AND RELAY | E169: SY
B170: 335.0100 | C170: RUBBLIZING | E170: SY
B171: 340.0100 | C171: CRACKING AND SEATING | E171: SY
B172: 350.0102 | C172: SUBBASE | E172: CY
B173: 350.0104 | C173: SUBBASE | E173: TON
B174: 350.0115 | C174: SUBBASE 6-INCH | E174: SY
B175: 350.0120 | C175: SUBBASE 7-INCH | E175: SY
B176: 350.0125 | C176: SUBBASE 8-INCH | E176: SY
B177: 350.0130 | C177: SUBBASE 9-INCH | E177: SY
B178: 350.0135 | C178: SUBBASE 10-INCH | E178: SY
B179: 350.0140 | C179: SUBBASE 11-INCH | E179: SY
B180: 350.0145 | C180: SUBBASE 12-INCH | E180: SY
B181: 390.0103 | C181: BASE PATCHING | E181: SY
B182: 390.0201 | C182: BASE PATCHING ASPHALTIC | E182: TON
B183: 390.0203 | C183: BASE PATCHING ASPHALTIC | E183: SY
B184: 390.0303 | C184: BASE PATCHING CONCRETE | E184: SY
B185: 390.0403 | C185: BASE PATCHING CONCRETE SHES | E185: SY
B186: 405.0100 | C186: COLORING CONCRETE RED | E186: CY
B187: 415.0060 | C187: CONCRETE PAVEMENT 6-INCH | E187: SY
B188: 415.0065 | C188: CONCRETE PAVEMENT 6 1/2-INCH | E188: SY
B189: 415.0070 | C189: CONCRETE PAVEMENT 7-INCH | E189: SY
B190: 415.0075 | C190: CONCRETE PAVEMENT 7 1/2-INCH | E190: SY
B191: 415.0080 | C191: CONCRETE PAVEMENT 8-INCH | E191: SY
B192: 415.0085 | C192: CONCRETE PAVEMENT 8 1/2-INCH | E192: SY
B193: 415.0090 | C193: CONCRETE PAVEMENT 9-INCH | E193: SY
B194: 415.0095 | C194: CONCRETE PAVEMENT 9 1/2-INCH | E194: SY
B195: 415.0100 | C195: CONCRETE PAVEMENT 10-INCH | E195: SY
B196: 415.0105 | C196: CONCRETE PAVEMENT 10 1/2-INCH | E196: SY
B197: 415.0110 | C197: CONCRETE PAVEMENT 11-INCH | E197: SY
B198: 415.0115 | C198: CONCRETE PAVEMENT 11 1/2-INCH | E198: SY
B199: 415.0120 | C199: CONCRETE PAVEMENT 12-INCH | E199: SY
B200: 415.0125 | C200: CONCRETE PAVEMENT 12 1/2-INCH | E200: SY
... 2083 more rows

Sheet 203.0200
G1: =UPPER(IF('Bid Items'!$C$28="","Enter an Item DESCRIPTION in 'Bid Items' sheet",'Bid Items'!$C$28)) -> REMOVING OLD STRUCTURE (130+21, C-55-0014)
I4: =UPPER('Bid Items'!$B$28) -> 203.0200
A5: CATEGORY | C5: STATION | D5: TO | E5: STATION | G5: LOCATION | I5: =UPPER('Bid Items'!$E$28) -> LS | K5: REMARKS
D6: =INSERTDASH(C6,E6) -> 
A7: 0010 | I7: 1
A8: 0010
A9: 0010
A10: 0010
A11: 0010
A13: 0010
A14: 0010
A15: 0010
A16: 0010
A17: 0010
G19: TOTAL 0010 | I19: =SUM(I6:I18) -> 1
A21: 0020
A22: 0020
A23: 0020
A24: 0020
A25: 0020
G27: TOTAL 0020 | I27: =SUM(I20:I26) -> 0
A29: 0030
A30: 0030
A31: 0030
A32: 0030
A33: 0030
G35: TOTAL 0030 | I35: =SUM(I28:I34) -> 0
D36: =INSERTDASH(C36,E36) -> 
A37: 0040
A38: 0040
A39: 0040
A40: 0040
A41: 0040
G43: TOTAL 0040 | I43: =SUM(I36:I42) -> 0
D44: =INSERTDASH(C44,E44) -> 
A45: 0050
A46: 0050
A47: 0050
A48: 0050
A49: 0050
G51: TOTAL 0050 | I51: =SUM(I44:I50) -> 0

Sheet 204.0100
G1: =UPPER(IF('Bid Items'!$C$34="","Enter an Item DESCRIPTION in 'Bid Items' sheet",'Bid Items'!$C$34)) -> REMOVING PAVEMENT
I4: =UPPER('Bid Items'!$B$34) -> 204.0100
A5: CATEGORY | C5: STATION | D5: TO | E5: STATION | G5: LOCATION | I5: =UPPER('Bid Items'!$E$34) -> SY | K5: REMARKS
D6: =INSERTDASH(C6,E6) -> 
A7: 0010 | C7: 5149 | D7: - | E7: 5174 | I7: =M13 -> 111.1111111 | L7: L = | M7: 50 | N7: ft
A8: 0010 | C8: 5194 | D8: - | E8: 5219 | I8: =M13 -> 111.1111111
A9: 0010 | L9: W = | M9: 20 | N9: ft
A10: 0010
A11: 0010 | L11: Area = | M11: =M7*M9 -> 1000 | N11: ft2
A13: 0010 | M13: =M11/9 -> 111.1111111 | N13: SY
A14: 0010
A15: 0010
A16: 0010
A17: 0010
G19: TOTAL 0010 | I19: =SUM(I6:I18) -> 222.2222222
A21: 0020
A22: 0020
A23: 0020
A24: 0020
A25: 0020
G27: TOTAL 0020 | I27: =SUM(I20:I26) -> 0
A29: 0030
A30: 0030
A31: 0030
A32: 0030
A33: 0030
G35: TOTAL 0030 | I35: =SUM(I28:I34) -> 0
D36: =INSERTDASH(C36,E36) -> 
A37: 0040
A38: 0040
A39: 0040
A40: 0040
A41: 0040
G43: TOTAL 0040 | I43: =SUM(I36:I42) -> 0
D44: =INSERTDASH(C44,E44) -> 
A45: 0050
A46: 0050
A47: 0050
A48: 0050
A49: 0050
G51: TOTAL 0050 | I51: =SUM(I44:I50) -> 0

Sheet 204.0110
G1: =UPPER(IF('Bid Items'!$C$37="","Enter an Item DESCRIPTION in 'Bid Items' sheet",'Bid Items'!$C$37)) -> REMOVING ASPHALTIC SURFACE
I4: =UPPER('Bid Items'!$B$37) -> 204.0110
A5: CATEGORY | C5: STATION | D5: TO | E5: STATION | G5: LOCATION | I5: =UPPER('Bid Items'!$E$37) -> SY | K5: REMARKS
D6: =INSERTDASH(C6,E6) -> 
A7: 0010 | C7: 5034 | D7: - | E7: 5334 | I7: =M13 -> 600 | L7: L = | M7: =E7-C7 -> 300 | N7: ft
A8: 0010
A9: 0010 | L9: W = | M9: 18 | N9: ft
A10: 0010
A11: 0010 | L11: Area = | M11: =M7*M9 -> 5400 | N11: ft2
A13: 0010 | M13: =M11/9 -> 600 | N13: SY
A14: 0010
A15: 0010
A16: 0010
A17: 0010
G19: TOTAL 0010 | I19: =SUM(I6:I18) -> 600
A21: 0020
A22: 0020
A23: 0020
A24: 0020
A25: 0020
G27: TOTAL 0020 | I27: =SUM(I20:I26) -> 0
A29: 0030
A30: 0030
A31: 0030
A32: 0030
A33: 0030
G35: TOTAL 0030 | I35: =SUM(I28:I34) -> 0
D36: =INSERTDASH(C36,E36) -> 
A37: 0040
A38: 0040
A39: 0040
A40: 0040
A41: 0040
G43: TOTAL 0040 | I43: =SUM(I36:I42) -> 0
D44: =INSERTDASH(C44,E44) -> 
A45: 0050
A46: 0050
A47: 0050
A48: 0050
A49: 0050
G51: TOTAL 0050 | I51: =SUM(I44:I50) -> 0

Sheet 205.0100
G1: =UPPER(IF('Bid Items'!$C$83="","Enter an Item DESCRIPTION in 'Bid Items' sheet",'Bid Items'!$C$83)) -> EXCAVATION COMMON
I4: =UPPER('Bid Items'!$B$83) -> 205.0100
A5: CATEGORY | C5: STATION | D5: TO | E5: STATION | G5: LOCATION | I5: =UPPER('Bid Items'!$E$83) -> CY | K5: REMARKS
D6: =INSERTDASH(C6,E6) -> 
A7: 0010 | C7: 4914 | D7: - | E7: 5454 | I7: 3200 | L7: L = | M7: 540 | N7: ft
A8: 0010 | L8: W = | M8: 20 | N8: ft
A9: 0010 | L9: H = | M9: 8 | N9: ft
A10: 0010 | M10: =M7*M8*M9 -> 86400 | N10: ft3
A11: 0010 | M11: =M10/27 -> 3200 | N11: CY
A13: 0010
A14: 0010
A15: 0010
A16: 0010
A17: 0010
G19: TOTAL 0010 | I19: =SUM(I6:I18) -> 3200
A21: 0020
A22: 0020
A23: 0020
A24: 0020
A25: 0020
G27: TOTAL 0020 | I27: =SUM(I20:I26) -> 0
A29: 0030
A30: 0030
A31: 0030
A32: 0030
A33: 0030
G35: TOTAL 0030 | I35: =SUM(I28:I34) -> 0
D36: =INSERTDASH(C36,E36) -> 
A37: 0040
A38: 0040
A39: 0040
A40: 0040
A41: 0040
G43: TOTAL 0040 | I43: =SUM(I36:I42) -> 0
D44: =INSERTDASH(C44,E44) -> 
A45: 0050
A46: 0050
A47: 0050
A48: 0050
A49: 0050
G51: TOTAL 0050 | I51: =SUM(I44:I50) -> 0

Sheet 211.0100
G1: =UPPER(IF('Bid Items'!$C$110="","Enter an Item DESCRIPTION in 'Bid Items' sheet",'Bid Items'!$C$110)) -> PREPARE FOUNDATION FOR ASPHALTIC PAVING (PROJECT)
I4: =UPPER('Bid Items'!$B$110) -> 211.0100
A5: CATEGORY | C5: STATION | D5: TO | E5: STATION | G5: LOCATION | I5: =UPPER('Bid Items'!$E$110) -> LS | K5: REMARKS
D6: =INSERTDASH(C6,E6) -> 
A7: 0010 | I7: 1
A8: 0010
A9: 0010
A10: 0010
A11: 0010
A13: 0010
A14: 0010
A15: 0010
A16: 0010
A17: 0010
G19: TOTAL 0010 | I19: =SUM(I6:I18) -> 1
A21: 0020
A22: 0020
A23: 0020
A24: 0020
A25: 0020
G27: TOTAL 0020 | I27: =SUM(I20:I26) -> 0
A29: 0030
A30: 0030
A31: 0030
A32: 0030
A33: 0030
G35: TOTAL 0030 | I35: =SUM(I28:I34) -> 0
D36: =INSERTDASH(C36,E36) -> 
A37: 0040
A38: 0040
A39: 0040
A40: 0040
A41: 0040
G43: TOTAL 0040 | I43: =SUM(I36:I42) -> 0
D44: =INSERTDASH(C44,E44) -> 
A45: 0050
A46: 0050
A47: 0050
A48: 0050
A49: 0050
G51: TOTAL 0050 | I51: =SUM(I44:I50) -> 0

Sheet 305.0110
G1: =UPPER(IF('Bid Items'!$C$117="","Enter an Item DESCRIPTION in 'Bid Items' sheet",'Bid Items'!$C$117)) -> BASE AGGREGATE DENSE 3/4-INCH
I4: =UPPER('Bid Items'!$B$117) -> 305.0110 | N4: ft3 x (2.0 Tons/yd3) x (1 yd3/27 ft3) | P4: =tons
A5: CATEGORY | C5: STATION | D5: TO | E5: STATION | G5: LOCATION | I5: =UPPER('Bid Items'!$E$117) -> TON | K5: REMARKS
D6: =INSERTDASH(C6,E6) -> 
A7: 0010 | C7: 4914 | D7: - | E7: 5454 | I7: =O12 -> 60 | L7: Shoulder | N7: Length = | O7: =E7-C7 -> 540 | P7: ft | Q7: With at Hinge Point | S7: With at Hinge Point
A8: 0010 | N8: Width Average (Hinge Point) = | O8: =U8 -> 6 | P8: ft | Q8: 8 | R8: ft | S8: 4 | T8: ft | U8: =(Q8+S8)/2 -> 6 | V8: ft
A9: 0010 | N9: Thickness (3") | O9: 0.25 | P9: ft
A10: 0010
A11: 0010 | O11: =O7*O8*O9 -> 810 | P11: ft3
O12: =O11*((2)*(1/27)) -> 60 | P12: Tons
A13: 0010
A14: 0010
A15: 0010
A16: 0010
A17: 0010
G19: TOTAL 0010 | I19: =SUM(I6:I18) -> 60
A21: 0020
A22: 0020
A23: 0020
A24: 0020
A25: 0020
G27: TOTAL 0020 | I27: =SUM(I20:I26) -> 0
A29: 0030
A30: 0030
A31: 0030
A32: 0030
A33: 0030
G35: TOTAL 0030 | I35: =SUM(I28:I34) -> 0
D36: =INSERTDASH(C36,E36) -> 
A37: 0040
A38: 0040
A39: 0040
A40: 0040
A41: 0040
G43: TOTAL 0040 | I43: =SUM(I36:I42) -> 0
D44: =INSERTDASH(C44,E44) -> 
A45: 0050
A46: 0050
A47: 0050
A48: 0050
A49: 0050
G51: TOTAL 0050 | I51: =SUM(I44:I50) -> 0

Sheet 305.0120
G1: =UPPER(IF('Bid Items'!$C$119="","Enter an Item DESCRIPTION in 'Bid Items' sheet",'Bid Items'!$C$119)) -> BASE AGGREGATE DENSE 1 1/4-INCH
I4: =UPPER('Bid Items'!$B$119) -> 305.0120
A5: CATEGORY | C5: STATION | D5: TO | E5: STATION | G5: LOCATION | I5: =UPPER('Bid Items'!$E$119) -> TON | K5: REMARKS | M5: ft3 x (2.0 Tons/yd3) x (1 yd3/27 ft3) | P5: =tons
D6: =INSERTDASH(C6,E6) -> 
A7: 0010 | C7: 5159 | D7: - | E7: 5209 | I7: =P16 -> 60.49382716
A8: 0010 | N8: 7 | O8: inches | P8: =N8/12 -> 0.5833333333 | Q8: ft | R8: fill above where new pipe will be
A9: 0010
A10: 0010 | P10: 50 | Q10: ft | R10: length
A11: 0010
P12: 28 | Q12: ft | R12: roadway width
A13: 0010
A14: 0010 | P14: =P8*P10*P12 -> 816.6666667 | Q14: ft3
A15: 0010
A16: 0010 | P16: =P14*((2*(1/27))) -> 60.49382716 | Q16: Ton
A17: 0010
G19: TOTAL 0010 | I19: =SUM(I6:I18) -> 60.49382716
A21: 0020
A22: 0020
A23: 0020
A24: 0020
A25: 0020
G27: TOTAL 0020 | I27: =SUM(I20:I26) -> 0
A29: 0030
A30: 0030
A31: 0030
A32: 0030
A33: 0030
G35: TOTAL 0030 | I35: =SUM(I28:I34) -> 0
D36: =INSERTDASH(C36,E36) -> 
A37: 0040
A38: 0040
A39: 0040
A40: 0040
A41: 0040
G43: TOTAL 0040 | I43: =SUM(I36:I42) -> 0
D44: =INSERTDASH(C44,E44) -> 
A45: 0050
A46: 0050
A47: 0050
A48: 0050
A49: 0050
G51: TOTAL 0050 | I51: =SUM(I44:I50) -> 0

Sheet 305.0500
G1: =UPPER(IF('Bid Items'!$C$125="","Enter an Item DESCRIPTION in 'Bid Items' sheet",'Bid Items'!$C$125)) -> SHAPING SHOULDERS
I4: =UPPER('Bid Items'!$B$125) -> 305.0500
A5: CATEGORY | C5: STATION | D5: TO | E5: STATION | G5: LOCATION | I5: =UPPER('Bid Items'!$E$125) -> STA | K5: REMARKS
D6: =INSERTDASH(C6,E6) -> 
A7: 0010 | C7: 4914 | D7: - | E7: 5454 | G7: LT | I7: =(E7-C7)/100 -> 5.4
A8: 0010 | C8: 4914 | D8: - | E8: 5454 | G8: RT | I8: =(E8-C8)/100 -> 5.4
A9: 0010
A10: 0010
A11: 0010
A13: 0010
A14: 0010
A15: 0010
A16: 0010
A17: 0010
G19: TOTAL 0010 | I19: =SUM(I7:I18) -> 10.8
A21: 0020
A22: 0020
A23: 0020
A24: 0020
A25: 0020
G27: TOTAL 0020 | I27: =SUM(I20:I26) -> 0
A29: 0030
A30: 0030
A31: 0030
A32: 0030
A33: 0030
G35: TOTAL 0030 | I35: =SUM(I28:I34) -> 0
D36: =INSERTDASH(C36,E36) -> 
A37: 0040
A38: 0040
A39: 0040
A40: 0040
A41: 0040
G43: TOTAL 0040 | I43: =SUM(I36:I42) -> 0
D44: =INSERTDASH(C44,E44) -> 
A45: 0050
A46: 0050
A47: 0050
A48: 0050
A49: 0050
G51: TOTAL 0050 | I51: =SUM(I44:I50) -> 0

Sheet 455.0605
G1: =UPPER(IF('Bid Items'!$C$273="","Enter an Item DESCRIPTION in 'Bid Items' sheet",'Bid Items'!$C$273)) -> TACK COAT
I4: =UPPER('Bid Items'!$B$273) -> 455.0605
A5: CATEGORY | C5: STATION | D5: TO | E5: STATION | G5: LOCATION | I5: =UPPER('Bid Items'!$E$273) -> GAL | K5: REMARKS | L5: Length | M5: Width | N5: Area | O5: Area
D6: =INSERTDASH(C6,E6) ->  | L6: ft | M6: ft | N6: ft2 | O6: SY
A7: 0010 | C7: 5159 | D7: - | E7: 5209 | I7: =O7*N10 -> 2.5 | L7: =E7-C7 -> 50 | M7: 18 | N7: =L7*M7 -> 900 | O7: =N7/9 -> 100
A8: 0010
A9: 0010
A10: 0010 | L10: Application Rate: | N10: 0.025 | O10: gal/sy
A11: 0010
A13: 0010
A14: 0010
A15: 0010
A16: 0010
A17: 0010
G19: TOTAL 0010 | I19: =SUM(I6:I18) -> 2.5
A21: 0020
A22: 0020
A23: 0020
A24: 0020
A25: 0020
G27: TOTAL 0020 | I27: =SUM(I20:I26) -> 0
A29: 0030
A30: 0030
A31: 0030
A32: 0030
A33: 0030
G35: TOTAL 0030 | I35: =SUM(I28:I34) -> 0
D36: =INSERTDASH(C36,E36) -> 
A37: 0040
A38: 0040
A39: 0040
A40: 0040
A41: 0040
G43: TOTAL 0040 | I43: =SUM(I36:I42) -> 0
D44: =INSERTDASH(C44,E44) -> 
A45: 0050
A46: 0050
A47: 0050
A48: 0050
A49: 0050
G51: TOTAL 0050 | I51: =SUM(I44:I50) -> 0

Sheet 465.0105
G1: =UPPER(IF('Bid Items'!$C$284="","Enter an Item DESCRIPTION in 'Bid Items' sheet",'Bid Items'!$C$284)) -> ASPHALTIC SURFACE
I4: =UPPER('Bid Items'!$B$284) -> 465.0105
A5: CATEGORY | C5: STATION | D5: TO | E5: STATION | G5: LOCATION | I5: =UPPER('Bid Items'!$E$284) -> TON | K5: REMARKS | L5: Length | M5: Width | N5: Area | O5: Tons
D6: =INSERTDASH(C6,E6) ->  | L6: ft | M6: ft | N6: ft2 | R6: ft2 x (1sy/9sf) x thickness x (115lb/sy*in) x 1 Ton/2000) = Tons
A7: 0010 | C7: 4914 | D7: - | E7: 5454 | I7: =O7 -> 36.225 | L7: =E7-C7 -> 540 | M7: 18 | N7: =L7*M7 -> 9720 | O7: =N7*R9*R8*R10*R11 -> 36.225
A8: 0010 | P8: 7 | Q8: in | R8: =P8/12 -> 0.5833333333 | S8: ft
A9: 0010 | R9: 0.1111111111 | S9: sy/sf
A10: 0010 | R10: 115 | S10: lb/sy*in
A11: 0010 | R11: =1/2000 -> 0.0005 | S11: ton/lb
A13: 0010
A14: 0010
A15: 0010
A16: 0010
A17: 0010
G19: TOTAL 0010 | I19: =SUM(I6:I18) -> 36.225
A21: 0020
A22: 0020
A23: 0020
A24: 0020
A25: 0020
G27: TOTAL 0020 | I27: =SUM(I20:I26) -> 0
A29: 0030
A30: 0030
A31: 0030
A32: 0030
A33: 0030
G35: TOTAL 0030 | I35: =SUM(I28:I34) -> 0
D36: =INSERTDASH(C36,E36) -> 
A37: 0040
A38: 0040
A39: 0040
A40: 0040
A41: 0040
G43: TOTAL 0040 | I43: =SUM(I36:I42) -> 0
D44: =INSERTDASH(C44,E44) -> 
A45: 0050
A46: 0050
A47: 0050
A48: 0050
A49: 0050
G51: TOTAL 0050 | I51: =SUM(I44:I50) -> 0

Sheet 465.0115
G1: =UPPER(IF('Bid Items'!$C$286="","Enter an Item DESCRIPTION in 'Bid Items' sheet",'Bid Items'!$C$286)) -> ASPHALTIC SURFACE DETOURS
I4: =UPPER('Bid Items'!$B$286) -> 465.0115
A5: CATEGORY | C5: STATION | D5: TO | E5: STATION | G5: LOCATION | I5: =UPPER('Bid Items'!$E$286) -> TON | K5: REMARKS
D6: =INSERTDASH(C6,E6) -> 
A7: 0010 | I7: 100
A8: 0010
A9: 0010
A10: 0010
A11: 0010
A13: 0010
A14: 0010
A15: 0010
A16: 0010
A17: 0010
G19: TOTAL 0010 | I19: =SUM(I6:I18) -> 100
A21: 0020
A22: 0020
A23: 0020
A24: 0020
A25: 0020
G27: TOTAL 0020 | I27: =SUM(I20:I26) -> 0
A29: 0030
A30: 0030
A31: 0030
A32: 0030
A33: 0030
G35: TOTAL 0030 | I35: =SUM(I28:I34) -> 0
D36: =INSERTDASH(C36,E36) -> 
A37: 0040
A38: 0040
A39: 0040
A40: 0040
A41: 0040
G43: TOTAL 0040 | I43: =SUM(I36:I42) -> 0
D44: =INSERTDASH(C44,E44) -> 
A45: 0050
A46: 0050
A47: 0050
A48: 0050
A49: 0050
G51: TOTAL 0050 | I51: =SUM(I44:I50) -> 0

Sheet 522.0160
G1: =UPPER(IF('Bid Items'!$C$696="","Enter an Item DESCRIPTION in 'Bid Items' sheet",'Bid Items'!$C$696)) -> CULVERT PIPE REINFORCED CONCRETE CLASS III 60-INCH
I4: =UPPER('Bid Items'!$B$696) -> 522.0160
A5: CATEGORY | C5: STATION | D5: TO | E5: STATION | G5: LOCATION | I5: =UPPER('Bid Items'!$E$696) -> LF | K5: REMARKS
D6: =INSERTDASH(C6,E6) -> 
A7: 0010 | C7: 5184 | I7: 70
A8: 0010
A9: 0010
A10: 0010
A11: 0010
A13: 0010
A14: 0010
A15: 0010
A16: 0010
A17: 0010
G19: TOTAL 0010 | I19: =SUM(I6:I18) -> 70
A21: 0020
A22: 0020
A23: 0020
A24: 0020
A25: 0020
G27: TOTAL 0020 | I27: =SUM(I20:I26) -> 0
A29: 0030
A30: 0030
A31: 0030
A32: 0030
A33: 0030
G35: TOTAL 0030 | I35: =SUM(I28:I34) -> 0
D36: =INSERTDASH(C36,E36) -> 
A37: 0040
A38: 0040
A39: 0040
A40: 0040
A41: 0040
G43: TOTAL 0040 | I43: =SUM(I36:I42) -> 0
D44: =INSERTDASH(C44,E44) -> 
A45: 0050
A46: 0050
A47: 0050
A48: 0050
A49: 0050
G51: TOTAL 0050 | I51: =SUM(I44:I50) -> 0

Sheet 522.1060
G1: =UPPER(IF('Bid Items'!$C$747="","Enter an Item DESCRIPTION in 'Bid Items' sheet",'Bid Items'!$C$747)) -> APRON ENDWALLS FOR CULVERT PIPE REINFORCED CONCRETE 60-INCH
I4: =UPPER('Bid Items'!$B$747) -> 522.1060
A5: CATEGORY | C5: STATION | D5: TO | E5: STATION | G5: LOCATION | I5: =UPPER('Bid Items'!$E$747) -> EACH | K5: REMARKS
D6: =INSERTDASH(C6,E6) -> 
A7: 0010 | E7: 5184 | I7: 2
A8: 0010
A9: 0010
A10: 0010
A11: 0010
A13: 0010
A14: 0010
A15: 0010
A16: 0010
A17: 0010
G19: TOTAL 0010 | I19: =SUM(I6:I18) -> 2
A21: 0020
A22: 0020
A23: 0020
A24: 0020
A25: 0020
G27: TOTAL 0020 | I27: =SUM(I20:I26) -> 0
A29: 0030
A30: 0030
A31: 0030
A32: 0030
A33: 0030
G35: TOTAL 0030 | I35: =SUM(I28:I34) -> 0
D36: =INSERTDASH(C36,E36) -> 
A37: 0040
A38: 0040
A39: 0040
A40: 0040
A41: 0040
G43: TOTAL 0040 | I43: =SUM(I36:I42) -> 0
D44: =INSERTDASH(C44,E44) -> 
A45: 0050
A46: 0050
A47: 0050
A48: 0050
A49: 0050
G51: TOTAL 0050 | I51: =SUM(I44:I50) -> 0

Sheet 606.0200
G1: =UPPER(IF('Bid Items'!$C$1122="","Enter an Item DESCRIPTION in 'Bid Items' sheet",'Bid Items'!$C$1122)) -> RIPRAP MEDIUM
I4: =UPPER('Bid Items'!$B$1122) -> 606.0200
A5: CATEGORY | C5: STATION | D5: TO | E5: STATION | G5: LOCATION | I5: =UPPER('Bid Items'!$E$1122) -> CY | K5: REMARKS | S5: W = width of pipe plus 1' on both sides
D6: =INSERTDASH(C6,E6) -> 
A7: 0010 | G7: northside | I7: =O17 -> 3.888888889 | O7: 60 | P7: inch | Q7: pipe | S7: L=2*W or 10' min
A8: 0010 | G8: southside | I8: =O17 -> 3.888888889
A9: 0010 | L9: Depth of Rip Rap = | M9: 18 | N9: inches | O9: =M9/12 -> 1.5 | P9: ft
A10: 0010
A11: 0010 | L11: Width | O11: 7 | P11: ft
A13: 0010 | L13: Length | O13: 10 | P13: ft
A14: 0010
A15: 0010 | L15: Volume (ft3) | O15: =O9*O11*O13 -> 105 | P15: ft3
A16: 0010
A17: 0010 | O17: =O15/27 -> 3.888888889 | P17: CY
G19: TOTAL 0010 | I19: =SUM(I6:I18) -> 7.777777778
A21: 0020
A22: 0020
A23: 0020
A24: 0020
A25: 0020
G27: TOTAL 0020 | I27: =SUM(I20:I26) -> 0
A29: 0030
A30: 0030
A31: 0030
A32: 0030
A33: 0030
G35: TOTAL 0030 | I35: =SUM(I28:I34) -> 0
D36: =INSERTDASH(C36,E36) -> 
A37: 0040
A38: 0040
A39: 0040
A40: 0040
A41: 0040
G43: TOTAL 0040 | I43: =SUM(I36:I42) -> 0
D44: =INSERTDASH(C44,E44) -> 
A45: 0050
A46: 0050
A47: 0050
A48: 0050
A49: 0050
G51: TOTAL 0050 | I51: =SUM(I44:I50) -> 0

Sheet 614.2300
G1: =UPPER(IF('Bid Items'!$C$1403="","Enter an Item DESCRIPTION in 'Bid Items' sheet",'Bid Items'!$C$1403)) -> MGS GUARDRAIL 3
I4: =UPPER('Bid Items'!$B$1403) -> 614.2300
A5: CATEGORY | C5: STATION | D5: TO | E5: STATION | G5: LOCATION | I5: =UPPER('Bid Items'!$E$1403) -> LF | K5: REMARKS
D6: =INSERTDASH(C6,E6) -> 
A7: 0010 | G7: Northside | I7: 100
A8: 0010 | G8: Southside | I8: 100
A9: 0010
A10: 0010
A11: 0010
A13: 0010
A14: 0010
A15: 0010
A16: 0010
A17: 0010
G19: TOTAL 0010 | I19: =SUM(I6:I18) -> 200
A21: 0020
A22: 0020
A23: 0020
A24: 0020
A25: 0020
G27: TOTAL 0020 | I27: =SUM(I20:I26) -> 0
A29: 0030
A30: 0030
A31: 0030
A32: 0030
A33: 0030
G35: TOTAL 0030 | I35: =SUM(I28:I34) -> 0
D36: =INSERTDASH(C36,E36) -> 
A37: 0040
A38: 0040
A39: 0040
A40: 0040
A41: 0040
G43: TOTAL 0040 | I43: =SUM(I36:I42) -> 0
D44: =INSERTDASH(C44,E44) -> 
A45: 0050
A46: 0050
A47: 0050
A48: 0050
A49: 0050
G51: TOTAL 0050 | I51: =SUM(I44:I50) -> 0

Sheet 614.2610
G1: =UPPER(IF('Bid Items'!$C$1409="","Enter an Item DESCRIPTION in 'Bid Items' sheet",'Bid Items'!$C$1409)) -> MGS GUARDRAIL TERMINAL EAT
I4: =UPPER('Bid Items'!$B$1409) -> 614.2610
A5: CATEGORY | C5: STATION | D5: TO | E5: STATION | G5: LOCATION | I5: =UPPER('Bid Items'!$E$1409) -> EACH | K5: REMARKS
D6: =INSERTDASH(C6,E6) -> 
A7: 0010 | G7: N/W Quadrant | I7: 1
A8: 0010 | G8: S/W Quadrant | I8: 1
A9: 0010 | G9: N/E Quadrant | I9: 1
A10: 0010 | G10: S/E Quadrant | I10: 1
A11: 0010
A13: 0010
A14: 0010
A15: 0010
A16: 0010
A17: 0010
G19: TOTAL 0010 | I19: =SUM(I6:I18) -> 4
A21: 0020
A22: 0020
A23: 0020
A24: 0020
A25: 0020
G27: TOTAL 0020 | I27: =SUM(I20:I26) -> 0
A29: 0030
A30: 0030
A31: 0030
A32: 0030
A33: 0030
G35: TOTAL 0030 | I35: =SUM(I28:I34) -> 0
D36: =INSERTDASH(C36,E36) -> 
A37: 0040
A38: 0040
A39: 0040
A40: 0040
A41: 0040
G43: TOTAL 0040 | I43: =SUM(I36:I42) -> 0
D44: =INSERTDASH(C44,E44) -> 
A45: 0050
A46: 0050
A47: 0050
A48: 0050
A49: 0050
G51: TOTAL 0050 | I51: =SUM(I44:I50) -> 0

Sheet 619.1000
G1: =UPPER(IF('Bid Items'!$C$1440="","Enter an Item DESCRIPTION in 'Bid Items' sheet",'Bid Items'!$C$1440)) -> MOBILIZATION
I4: =UPPER('Bid Items'!$B$1440) -> 619.1000
A5: CATEGORY | C5: STATION | D5: TO | E5: STATION | G5: LOCATION | I5: =UPPER('Bid Items'!$E$1440) -> EACH | K5: REMARKS
D6: =INSERTDASH(C6,E6) -> 
A7: 0010 | I7: 1 | K7: used 4.5% of project cost
A8: 0010
A9: 0010
A10: 0010
A11: 0010
A13: 0010
A14: 0010
A15: 0010
A16: 0010
A17: 0010
G19: TOTAL 0010 | I19: =SUM(I6:I18) -> 1
A21: 0020
A22: 0020
A23: 0020
A24: 0020
A25: 0020
G27: TOTAL 0020 | I27: =SUM(I20:I26) -> 0
A29: 0030
A30: 0030
A31: 0030
A32: 0030
A33: 0030
G35: TOTAL 0030 | I35: =SUM(I28:I34) -> 0
D36: =INSERTDASH(C36,E36) -> 
A37: 0040
A38: 0040
A39: 0040
A40: 0040
A41: 0040
G43: TOTAL 0040 | I43: =SUM(I36:I42) -> 0
D44: =INSERTDASH(C44,E44) -> 
A45: 0050
A46: 0050
A47: 0050
A48: 0050
A49: 0050
G51: TOTAL 0050 | I51: =SUM(I44:I50) -> 0

Sheet 625.0500
G1: =UPPER(IF('Bid Items'!$C$1451="","Enter an Item DESCRIPTION in 'Bid Items' sheet",'Bid Items'!$C$1451)) -> SALVAGED TOPSOIL
I4: =UPPER('Bid Items'!$B$1451) -> 625.0500
A5: CATEGORY | C5: STATION | D5: TO | E5: STATION | G5: LOCATION | I5: =UPPER('Bid Items'!$E$1451) -> SY | K5: REMARKS
D6: =INSERTDASH(C6,E6) -> 
A7: 0010 | C7: 5034 | D7: - | E7: 5334 | G7: LT | I7: =N13 -> 700 | M7: Length | N7: =E7-C7 -> 300 | O7: ft
A8: 0010 | C8: 5034 | D8: - | E8: 5334 | G8: RT | I8: =N13 -> 700 | R8: Hinge Point | T8: Hinge Point
A9: 0010 | M9: Width | N9: =(R9+T9)/2 -> 21 | O9: ft | Q9: Average Width | R9: 19 | T9: 23
A10: 0010
A11: 0010 | M11: Area | N11: =N7*N9 -> 6300 | O11: ft2
A13: 0010 | N13: =N11/9 -> 700 | O13: SY
A14: 0010
A15: 0010
A16: 0010
A17: 0010
G19: TOTAL 0010 | I19: =SUM(I6:I18) -> 1400
A21: 0020
A22: 0020
A23: 0020
A24: 0020
A25: 0020
G27: TOTAL 0020 | I27: =SUM(I20:I26) -> 0
A29: 0030
A30: 0030
A31: 0030
A32: 0030
A33: 0030
G35: TOTAL 0030 | I35: =SUM(I28:I34) -> 0
D36: =INSERTDASH(C36,E36) -> 
A37: 0040
A38: 0040
A39: 0040
A40: 0040
A41: 0040
G43: TOTAL 0040 | I43: =SUM(I36:I42) -> 0
D44: =INSERTDASH(C44,E44) -> 
A45: 0050
A46: 0050
A47: 0050
A48: 0050
A49: 0050
G51: TOTAL 0050 | I51: =SUM(I44:I50) -> 0

Sheet 628.1504
G1: =UPPER(IF('Bid Items'!$C$1456="","Enter an Item DESCRIPTION in 'Bid Items' sheet",'Bid Items'!$C$1456)) -> SILT FENCE
I4: =UPPER('Bid Items'!$B$1456) -> 628.1504
A5: CATEGORY | C5: STATION | D5: TO | E5: STATION | G5: LOCATION | I5: =UPPER('Bid Items'!$E$1456) -> LF | K5: REMARKS
D6: =INSERTDASH(C6,E6) -> 
A7: 0010 | C7: 5034 | D7: - | E7: 5334 | G7: LT | I7: 350
A8: 0010 | C8: 5034 | D8: - | E8: 5334 | G8: RT | I8: 350
A9: 0010
A10: 0010
A11: 0010
A13: 0010
A14: 0010
A15: 0010
A16: 0010
A17: 0010
G19: TOTAL 0010 | I19: =SUM(I6:I18) -> 700
A21: 0020
A22: 0020
A23: 0020
A24: 0020
A25: 0020
G27: TOTAL 0020 | I27: =SUM(I20:I26) -> 0
A29: 0030
A30: 0030
A31: 0030
A32: 0030
A33: 0030
G35: TOTAL 0030 | I35: =SUM(I28:I34) -> 0
D36: =INSERTDASH(C36,E36) -> 
A37: 0040
A38: 0040
A39: 0040
A40: 0040
A41: 0040
G43: TOTAL 0040 | I43: =SUM(I36:I42) -> 0
D44: =INSERTDASH(C44,E44) -> 
A45: 0050
A46: 0050
A47: 0050
A48: 0050
A49: 0050
G51: TOTAL 0050 | I51: =SUM(I44:I50) -> 0

Sheet 628.1520
G1: =UPPER(IF('Bid Items'!$C$1457="","Enter an Item DESCRIPTION in 'Bid Items' sheet",'Bid Items'!$C$1457)) -> SILT FENCE MAINTENANCE
I4: =UPPER('Bid Items'!$B$1457) -> 628.1520
A5: CATEGORY | C5: STATION | D5: TO | E5: STATION | G5: LOCATION | I5: =UPPER('Bid Items'!$E$1457) -> LF | K5: REMARKS
D6: =INSERTDASH(C6,E6) -> 
A7: 0010 | C7: 5034 | D7: - | E7: 5334 | G7: LT | I7: 350
A8: 0010 | C8: 5034 | D8: - | E8: 5334 | G8: RT | I8: 350
A9: 0010
A10: 0010
A11: 0010
A13: 0010
A14: 0010
A15: 0010
A16: 0010
A17: 0010
G19: TOTAL 0010 | I19: =SUM(I6:I18) -> 700
A21: 0020
A22: 0020
A23: 0020
A24: 0020
A25: 0020
G27: TOTAL 0020 | I27: =SUM(I20:I26) -> 0
A29: 0030
A30: 0030
A31: 0030
A32: 0030
A33: 0030
G35: TOTAL 0030 | I35: =SUM(I28:I34) -> 0
D36: =INSERTDASH(C36,E36) -> 
A37: 0040
A38: 0040
A39: 0040
A40: 0040
A41: 0040
G43: TOTAL 0040 | I43: =SUM(I36:I42) -> 0
D44: =INSERTDASH(C44,E44) -> 
A45: 0050
A46: 0050
A47: 0050
A48: 0050
A49: 0050
G51: TOTAL 0050 | I51: =SUM(I44:I50) -> 0

Sheet 628.1905
G1: =UPPER(IF('Bid Items'!$C$1459="","Enter an Item DESCRIPTION in 'Bid Items' sheet",'Bid Items'!$C$1459)) -> MOBILIZATIONS EROSION CONTROL
I4: =UPPER('Bid Items'!$B$1459) -> 628.1905
A5: CATEGORY | C5: STATION | D5: TO | E5: STATION | G5: LOCATION | I5: =UPPER('Bid Items'!$E$1459) -> EACH | K5: REMARKS
D6: =INSERTDASH(C6,E6) -> 
A7: 0010 | I7: 1
A8: 0010
A9: 0010
A10: 0010
A11: 0010
A13: 0010
A14: 0010
A15: 0010
A16: 0010
A17: 0010
G19: TOTAL 0010 | I19: =SUM(I6:I18) -> 1
A21: 0020
A22: 0020
A23: 0020
A24: 0020
A25: 0020
G27: TOTAL 0020 | I27: =SUM(I20:I26) -> 0
A29: 0030
A30: 0030
A31: 0030
A32: 0030
A33: 0030
G35: TOTAL 0030 | I35: =SUM(I28:I34) -> 0
D36: =INSERTDASH(C36,E36) -> 
A37: 0040
A38: 0040
A39: 0040
A40: 0040
A41: 0040
G43: TOTAL 0040 | I43: =SUM(I36:I42) -> 0
D44: =INSERTDASH(C44,E44) -> 
A45: 0050
A46: 0050
A47: 0050
A48: 0050
A49: 0050
G51: TOTAL 0050 | I51: =SUM(I44:I50) -> 0

Sheet 628.1910
G1: =UPPER(IF('Bid Items'!$C$1460="","Enter an Item DESCRIPTION in 'Bid Items' sheet",'Bid Items'!$C$1460)) -> MOBILIZATIONS EMERGENCY EROSION CONTROL
I4: =UPPER('Bid Items'!$B$1460) -> 628.1910
A5: CATEGORY | C5: STATION | D5: TO | E5: STATION | G5: LOCATION | I5: =UPPER('Bid Items'!$E$1460) -> EACH | K5: REMARKS
D6: =INSERTDASH(C6,E6) -> 
A7: 0010 | I7: 1
A8: 0010
A9: 0010
A10: 0010
A11: 0010
A13: 0010
A14: 0010
A15: 0010
A16: 0010
A17: 0010
G19: TOTAL 0010 | I19: =SUM(I6:I18) -> 1
A21: 0020
A22: 0020
A23: 0020
A24: 0020
A25: 0020
G27: TOTAL 0020 | I27: =SUM(I20:I26) -> 0
A29: 0030
A30: 0030
A31: 0030
A32: 0030
A33: 0030
G35: TOTAL 0030 | I35: =SUM(I28:I34) -> 0
D36: =INSERTDASH(C36,E36) -> 
A37: 0040
A38: 0040
A39: 0040
A40: 0040
A41: 0040
G43: TOTAL 0040 | I43: =SUM(I36:I42) -> 0
D44: =INSERTDASH(C44,E44) -> 
A45: 0050
A46: 0050
A47: 0050
A48: 0050
A49: 0050
G51: TOTAL 0050 | I51: =SUM(I44:I50) -> 0

Sheet 628.2004
G1: =UPPER(IF('Bid Items'!$C$1463="","Enter an Item DESCRIPTION in 'Bid Items' sheet",'Bid Items'!$C$1463)) -> EROSION MAT CLASS I TYPE B
I4: =UPPER('Bid Items'!$B$1463) -> 628.2004
A5: CATEGORY | C5: STATION | D5: TO | E5: STATION | G5: LOCATION | I5: =UPPER('Bid Items'!$E$1463) -> SY | K5: REMARKS
D6: =INSERTDASH(C6,E6) ->  | M6: Length | N6: =E7-C7 -> 300 | O6: ft
A7: 0010 | C7: 5034 | D7: - | E7: 5334 | G7: LT | I7: =N12 -> 700 | R7: Hinge Point | T7: Hinge Point
A8: 0010 | C8: 5034 | D8: - | E8: 5334 | G8: RT | I8: =N12 -> 700 | M8: Width | N8: =(R8+T8)/2 -> 21 | O8: ft | Q8: Average Width | R8: 19 | T8: 23
A9: 0010
A10: 0010 | M10: Area | N10: =N6*N8 -> 6300 | O10: ft2
A11: 0010
N12: =N10/9 -> 700 | O12: SY
A13: 0010
A14: 0010
A15: 0010
A16: 0010
A17: 0010
G19: TOTAL 0010 | I19: =SUM(I6:I18) -> 1400
A21: 0020
A22: 0020
A23: 0020
A24: 0020
A25: 0020
G27: TOTAL 0020 | I27: =SUM(I20:I26) -> 0
A29: 0030
A30: 0030
A31: 0030
A32: 0030
A33: 0030
G35: TOTAL 0030 | I35: =SUM(I28:I34) -> 0
D36: =INSERTDASH(C36,E36) -> 
A37: 0040
A38: 0040
A39: 0040
A40: 0040
A41: 0040
G43: TOTAL 0040 | I43: =SUM(I36:I42) -> 0
D44: =INSERTDASH(C44,E44) -> 
A45: 0050
A46: 0050
A47: 0050
A48: 0050
A49: 0050
G51: TOTAL 0050 | I51: =SUM(I44:I50) -> 0

Sheet 628.7504
G1: =UPPER(IF('Bid Items'!$C$1481="","Enter an Item DESCRIPTION in 'Bid Items' sheet",'Bid Items'!$C$1481)) -> TEMPORARY DITCH CHECKS
I4: =UPPER('Bid Items'!$B$1481) -> 628.7504
A5: CATEGORY | C5: STATION | D5: TO | E5: STATION | G5: LOCATION | I5: =UPPER('Bid Items'!$E$1481) -> LF | K5: REMARKS
D6: =INSERTDASH(C6,E6) ->  | M6: Width | N6: 10 | O6: ft
A7: 0010 | C7: 5034 | D7: - | E7: 5334 | G7: North | I7: 50 | M7: Ditch Check every 50'
A8: 0010 | C8: 5034 | D8: - | E8: 5334 | G8: South | I8: 50
A9: 0010 | M9: Length = | N9: =E7-C7 -> 300
A10: 0010
A11: 0010 | M11: 5 | N11: per/side
A13: 0010
A14: 0010
A15: 0010
A16: 0010
A17: 0010
G19: TOTAL 0010 | I19: =SUM(I6:I18) -> 100
A21: 0020
A22: 0020
A23: 0020
A24: 0020
A25: 0020
G27: TOTAL 0020 | I27: =SUM(I20:I26) -> 0
A29: 0030
A30: 0030
A31: 0030
A32: 0030
A33: 0030
G35: TOTAL 0030 | I35: =SUM(I28:I34) -> 0
D36: =INSERTDASH(C36,E36) -> 
A37: 0040
A38: 0040
A39: 0040
A40: 0040
A41: 0040
G43: TOTAL 0040 | I43: =SUM(I36:I42) -> 0
D44: =INSERTDASH(C44,E44) -> 
A45: 0050
A46: 0050
A47: 0050
A48: 0050
A49: 0050
G51: TOTAL 0050 | I51: =SUM(I44:I50) -> 0

Sheet 628.7555
G1: =UPPER(IF('Bid Items'!$C$1482="","Enter an Item DESCRIPTION in 'Bid Items' sheet",'Bid Items'!$C$1482)) -> CULVERT PIPE CHECKS
I4: =UPPER('Bid Items'!$B$1482) -> 628.7555
A5: CATEGORY | C5: STATION | D5: TO | E5: STATION | G5: LOCATION | I5: =UPPER('Bid Items'!$E$1482) -> EACH | K5: REMARKS
D6: =INSERTDASH(C6,E6) -> 
A7: 0010 | I7: 2
A8: 0010
A9: 0010
A10: 0010
A11: 0010
A13: 0010
A14: 0010
A15: 0010
A16: 0010
A17: 0010
G19: TOTAL 0010 | I19: =SUM(I6:I18) -> 2
A21: 0020
A22: 0020
A23: 0020
A24: 0020
A25: 0020
G27: TOTAL 0020 | I27: =SUM(I20:I26) -> 0
A29: 0030
A30: 0030
A31: 0030
A32: 0030
A33: 0030
G35: TOTAL 0030 | I35: =SUM(I28:I34) -> 0
D36: =INSERTDASH(C36,E36) -> 
A37: 0040
A38: 0040
A39: 0040
A40: 0040
A41: 0040
G43: TOTAL 0040 | I43: =SUM(I36:I42) -> 0
D44: =INSERTDASH(C44,E44) -> 
A45: 0050
A46: 0050
A47: 0050
A48: 0050
A49: 0050
G51: TOTAL 0050 | I51: =SUM(I44:I50) -> 0

Sheet 629.0210
G1: =UPPER(IF('Bid Items'!$C$1487="","Enter an Item DESCRIPTION in 'Bid Items' sheet",'Bid Items'!$C$1487)) -> FERTILIZER TYPE B
I4: =UPPER('Bid Items'!$B$1487) -> 629.0210 | L4: Area
A5: CATEGORY | C5: STATION | D5: TO | E5: STATION | G5: LOCATION | I5: =UPPER('Bid Items'!$E$1487) -> CWT | K5: REMARKS | L5: Ft2 | M5: Fertilizer | N5: 7lbs/((100)(1000sf)) | O5: =7/((100)*(1000)) -> 7e-05
D6: =INSERTDASH(C6,E6) -> 
A7: 0010 | C7: 4914 | D7: - | E7: 5454 | G7: LT | I7: =L7*O5 -> 0.7938 | L7: =M8*M11 -> 11340 | M7: Average Width (ft) | N7: Hinge Point | P7: Hinge Point
A8: 0010 | C8: 4914 | D8: - | E8: 5454 | G8: RT | I8: =L7*O5 -> 0.7938 | M8: =(N8+P8)/2 -> 21 | N8: 19 | P8: 23
A9: 0010
A10: 0010 | M10: Length (ft)
A11: 0010 | M11: =E7-C7 -> 540
A13: 0010
A14: 0010
A15: 0010
A16: 0010
A17: 0010
G19: TOTAL 0010 | I19: =SUM(I6:I18) -> 1.5876
A21: 0020
A22: 0020
A23: 0020
A24: 0020
A25: 0020
G27: TOTAL 0020 | I27: =SUM(I20:I26) -> 0
A29: 0030
A30: 0030
A31: 0030
A32: 0030
A33: 0030
G35: TOTAL 0030 | I35: =SUM(I28:I34) -> 0
D36: =INSERTDASH(C36,E36) -> 
A37: 0040
A38: 0040
A39: 0040
A40: 0040
A41: 0040
G43: TOTAL 0040 | I43: =SUM(I36:I42) -> 0
D44: =INSERTDASH(C44,E44) -> 
A45: 0050
A46: 0050
A47: 0050
A48: 0050
A49: 0050
G51: TOTAL 0050 | I51: =SUM(I44:I50) -> 0

Sheet 630.0120
G1: =UPPER(IF('Bid Items'!$C$1490="","Enter an Item DESCRIPTION in 'Bid Items' sheet",'Bid Items'!$C$1490)) -> SEEDING MIXTURE NO. 20 | N1: rate | O1: 2#/1000 | P1: =2/1000 -> 0.002
I4: =UPPER('Bid Items'!$B$1490) -> 630.0120 | L4: Area | M4: Length | O4: Average Width (ft) | P4: Hinge Point | R4: Hinge Point
A5: CATEGORY | C5: STATION | D5: TO | E5: STATION | G5: LOCATION | I5: =UPPER('Bid Items'!$E$1490) -> LB | K5: REMARKS | L5: ft2 | M5: ft | O5: =(P5+R5)/2 -> 21 | P5: 19 | R5: 23
D6: =INSERTDASH(C6,E6) -> 
A7: 0010 | C7: 4914 | D7: - | E7: 5454 | G7: LT | I7: =L7*P1 -> 22.68 | L7: =O5*M7 -> 11340 | M7: =E7-C7 -> 540
A8: 0010 | C8: 4914 | D8: - | E8: 5454 | G8: RT | I8: =L7*P1 -> 22.68
A9: 0010
A10: 0010
A11: 0010
A13: 0010
A14: 0010
A15: 0010
A16: 0010
A17: 0010
G19: TOTAL 0010 | I19: =SUM(I6:I18) -> 45.36
A21: 0020
A22: 0020
A23: 0020
A24: 0020
A25: 0020
G27: TOTAL 0020 | I27: =SUM(I20:I26) -> 0
A29: 0030
A30: 0030
A31: 0030
A32: 0030
A33: 0030
G35: TOTAL 0030 | I35: =SUM(I28:I34) -> 0
D36: =INSERTDASH(C36,E36) -> 
A37: 0040
A38: 0040
A39: 0040
A40: 0040
A41: 0040
G43: TOTAL 0040 | I43: =SUM(I36:I42) -> 0
D44: =INSERTDASH(C44,E44) -> 
A45: 0050
A46: 0050
A47: 0050
A48: 0050
A49: 0050
G51: TOTAL 0050 | I51: =SUM(I44:I50) -> 0

Sheet 630.0200
G1: =UPPER(IF('Bid Items'!$C$1498="","Enter an Item DESCRIPTION in 'Bid Items' sheet",'Bid Items'!$C$1498)) -> SEEDING TEMPORARY | M1: rate | N1: 3#/1000 | O1: =3/1000 -> 0.003
I4: =UPPER('Bid Items'!$B$1498) -> 630.0200 | L4: Area | M4: Length | O4: Average Width (ft) | P4: Hinge Point | Q4: Hinge Point
A5: CATEGORY | C5: STATION | D5: TO | E5: STATION | G5: LOCATION | I5: =UPPER('Bid Items'!$E$1498) -> LB | K5: REMARKS | L5: ft2 | M5: ft | O5: =(P5+Q5)/2 -> 21 | P5: 19 | Q5: 23
D6: =INSERTDASH(C6,E6) -> 
A7: 0010 | C7: 4914 | D7: - | E7: 5454 | I7: =L7*O1 -> 34.02 | L7: =M7*O5 -> 11340 | M7: =E7-C7 -> 540
A8: 0010 | C8: 4914 | D8: - | E8: 5454 | I8: =L7*O1 -> 34.02
A9: 0010
A10: 0010
A11: 0010
A13: 0010
A14: 0010
A15: 0010
A16: 0010
A17: 0010
G19: TOTAL 0010 | I19: =SUM(I6:I18) -> 68.04
A21: 0020
A22: 0020
A23: 0020
A24: 0020
A25: 0020
G27: TOTAL 0020 | I27: =SUM(I20:I26) -> 0
A29: 0030
A30: 0030
A31: 0030
A32: 0030
A33: 0030
G35: TOTAL 0030 | I35: =SUM(I28:I34) -> 0
D36: =INSERTDASH(C36,E36) -> 
A37: 0040
A38: 0040
A39: 0040
A40: 0040
A41: 0040
G43: TOTAL 0040 | I43: =SUM(I36:I42) -> 0
D44: =INSERTDASH(C44,E44) -> 
A45: 0050
A46: 0050
A47: 0050
A48: 0050
A49: 0050
G51: TOTAL 0050 | I51: =SUM(I44:I50) -> 0

Sheet 633.5200
G1: =UPPER(IF('Bid Items'!$C$1515="","Enter an Item DESCRIPTION in 'Bid Items' sheet",'Bid Items'!$C$1515)) -> MARKERS CULVERT END
I4: =UPPER('Bid Items'!$B$1515) -> 633.5200
A5: CATEGORY | C5: STATION | D5: TO | E5: STATION | G5: LOCATION | I5: =UPPER('Bid Items'!$E$1515) -> EACH | K5: REMARKS
D6: =INSERTDASH(C6,E6) -> 
A7: 0010 | E7: 5184 | I7: 2
A8: 0010
A9: 0010
A10: 0010
A11: 0010
A13: 0010
A14: 0010
A15: 0010
A16: 0010
A17: 0010
G19: TOTAL 0010 | I19: =SUM(I6:I18) -> 2
A21: 0020
A22: 0020
A23: 0020
A24: 0020
A25: 0020
G27: TOTAL 0020 | I27: =SUM(I20:I26) -> 0
A29: 0030
A30: 0030
A31: 0030
A32: 0030
A33: 0030
G35: TOTAL 0030 | I35: =SUM(I28:I34) -> 0
D36: =INSERTDASH(C36,E36) -> 
A37: 0040
A38: 0040
A39: 0040
A40: 0040
A41: 0040
G43: TOTAL 0040 | I43: =SUM(I36:I42) -> 0
D44: =INSERTDASH(C44,E44) -> 
A45: 0050
A46: 0050
A47: 0050
A48: 0050
A49: 0050
G51: TOTAL 0050 | I51: =SUM(I44:I50) -> 0

Sheet 634.0416
G1: =UPPER(IF('Bid Items'!$C$1520="","Enter an Item DESCRIPTION in 'Bid Items' sheet",'Bid Items'!$C$1520)) -> POSTS WOOD 4X4-INCH X 16-FT
I4: =UPPER('Bid Items'!$B$1520) -> 634.0416
A5: CATEGORY | C5: STATION | D5: TO | E5: STATION | G5: LOCATION | I5: =UPPER('Bid Items'!$E$1520) -> EACH | K5: REMARKS
D6: =INSERTDASH(C6,E6) -> 
A7: 0010 | G7: Southside | I7: 1
A8: 0010
A9: 0010
A10: 0010
A11: 0010
A13: 0010
A14: 0010
A15: 0010
A16: 0010
A17: 0010
G19: TOTAL 0010 | I19: =SUM(I6:I18) -> 1
A21: 0020
A22: 0020
A23: 0020
A24: 0020
A25: 0020
G27: TOTAL 0020 | I27: =SUM(I20:I26) -> 0
A29: 0030
A30: 0030
A31: 0030
A32: 0030
A33: 0030
G35: TOTAL 0030 | I35: =SUM(I28:I34) -> 0
D36: =INSERTDASH(C36,E36) -> 
A37: 0040
A38: 0040
A39: 0040
A40: 0040
A41: 0040
G43: TOTAL 0040 | I43: =SUM(I36:I42) -> 0
D44: =INSERTDASH(C44,E44) -> 
A45: 0050
A46: 0050
A47: 0050
A48: 0050
A49: 0050
G51: TOTAL 0050 | I51: =SUM(I44:I50) -> 0

Sheet 634.0805
G1: =UPPER(IF('Bid Items'!$C$1531="","Enter an Item DESCRIPTION in 'Bid Items' sheet",'Bid Items'!$C$1531)) -> POSTS TUBULAR STEEL 2X2-INCH X 5-FT
I4: =UPPER('Bid Items'!$B$1531) -> 634.0805
A5: CATEGORY | C5: STATION | D5: TO | E5: STATION | G5: LOCATION | I5: =UPPER('Bid Items'!$E$1531) -> EACH | K5: REMARKS
D6: =INSERTDASH(C6,E6) -> 
A7: 0010 | G7: N/W Quadrant | I7: 1
A8: 0010 | G8: S/W Quadrant | I8: 1
A9: 0010 | G9: N/E Quadrant | I9: 1
A10: 0010 | G10: S/E Quadrant | I10: 1
A11: 0010
A13: 0010
A14: 0010
A15: 0010
A16: 0010
A17: 0010
G19: TOTAL 0010 | I19: =SUM(I6:I18) -> 4
A21: 0020
A22: 0020
A23: 0020
A24: 0020
A25: 0020
G27: TOTAL 0020 | I27: =SUM(I20:I26) -> 0
A29: 0030
A30: 0030
A31: 0030
A32: 0030
A33: 0030
G35: TOTAL 0030 | I35: =SUM(I28:I34) -> 0
D36: =INSERTDASH(C36,E36) -> 
A37: 0040
A38: 0040
A39: 0040
A40: 0040
A41: 0040
G43: TOTAL 0040 | I43: =SUM(I36:I42) -> 0
D44: =INSERTDASH(C44,E44) -> 
A45: 0050
A46: 0050
A47: 0050
A48: 0050
A49: 0050
G51: TOTAL 0050 | I51: =SUM(I44:I50) -> 0

Sheet 637.2210
G1: =UPPER(IF('Bid Items'!$C$1556="","Enter an Item DESCRIPTION in 'Bid Items' sheet",'Bid Items'!$C$1556)) -> SIGNS TYPE II REFLECTIVE H
I4: =UPPER('Bid Items'!$B$1556) -> 637.2210
A5: CATEGORY | C5: STATION | D5: TO | E5: STATION | G5: LOCATION | I5: =UPPER('Bid Items'!$E$1556) -> SF | K5: REMARKS
D6: =INSERTDASH(C6,E6) -> 
A7: 0010 | I7: 3 | K7: W5-52L
A8: 0010 | I8: 3 | K8: W5-52R
A9: 0010 | I9: 3 | K9: W5-52L
A10: 0010 | I10: 3 | K10: W5-52R
A11: 0010 | I11: 6.25 | K11: W10-4
A13: 0010
A14: 0010
A15: 0010
A16: 0010
A17: 0010
G19: TOTAL 0010 | I19: =SUM(I6:I18) -> 18.25
A21: 0020
A22: 0020
A23: 0020
A24: 0020
A25: 0020
G27: TOTAL 0020 | I27: =SUM(I20:I26) -> 0
A29: 0030
A30: 0030
A31: 0030
A32: 0030
A33: 0030
G35: TOTAL 0030 | I35: =SUM(I28:I34) -> 0
D36: =INSERTDASH(C36,E36) -> 
A37: 0040
A38: 0040
A39: 0040
A40: 0040
A41: 0040
G43: TOTAL 0040 | I43: =SUM(I36:I42) -> 0
D44: =INSERTDASH(C44,E44) -> 
A45: 0050
A46: 0050
A47: 0050
A48: 0050
A49: 0050
G51: TOTAL 0050 | I51: =SUM(I44:I50) -> 0

Sheet 638.2602
G1: =UPPER(IF('Bid Items'!$C$1570="","Enter an Item DESCRIPTION in 'Bid Items' sheet",'Bid Items'!$C$1570)) -> REMOVING SIGNS TYPE II
I4: =UPPER('Bid Items'!$B$1570) -> 638.2602
A5: CATEGORY | C5: STATION | D5: TO | E5: STATION | G5: LOCATION | I5: =UPPER('Bid Items'!$E$1570) -> EACH | K5: REMARKS
D6: =INSERTDASH(C6,E6) -> 
A7: 0010 | I7: 1 | K7: W5-52L
A8: 0010 | I8: 1 | K8: W5-52R
A9: 0010 | I9: 1 | K9: W5-52L
A10: 0010 | I10: 1 | K10: W5-52R
A11: 0010 | I11: 1 | K11: W10-4
A13: 0010
A14: 0010
A15: 0010
A16: 0010
A17: 0010
G19: TOTAL 0010 | I19: =SUM(I6:I18) -> 5
A21: 0020
A22: 0020
A23: 0020
A24: 0020
A25: 0020
G27: TOTAL 0020 | I27: =SUM(I20:I26) -> 0
A29: 0030
A30: 0030
A31: 0030
A32: 0030
A33: 0030
G35: TOTAL 0030 | I35: =SUM(I28:I34) -> 0
D36: =INSERTDASH(C36,E36) -> 
A37: 0040
A38: 0040
A39: 0040
A40: 0040
A41: 0040
G43: TOTAL 0040 | I43: =SUM(I36:I42) -> 0
D44: =INSERTDASH(C44,E44) -> 
A45: 0050
A46: 0050
A47: 0050
A48: 0050
A49: 0050
G51: TOTAL 0050 | I51: =SUM(I44:I50) -> 0

Sheet 642.5001
G1: =UPPER(IF('Bid Items'!$C$1613="","Enter an Item DESCRIPTION in 'Bid Items' sheet",'Bid Items'!$C$1613)) -> FIELD OFFICE TYPE B
I4: =UPPER('Bid Items'!$B$1613) -> 642.5001
A5: CATEGORY | C5: STATION | D5: TO | E5: STATION | G5: LOCATION | I5: =UPPER('Bid Items'!$E$1613) -> EACH | K5: REMARKS
D6: =INSERTDASH(C6,E6) -> 
A7: 0010 | I7: 1
A8: 0010
A9: 0010
A10: 0010
A11: 0010
A13: 0010
A14: 0010
A15: 0010
A16: 0010
A17: 0010
G19: TOTAL 0010 | I19: =SUM(I6:I18) -> 1
A21: 0020
A22: 0020
A23: 0020
A24: 0020
A25: 0020
G27: TOTAL 0020 | I27: =SUM(I20:I26) -> 0
A29: 0030
A30: 0030
A31: 0030
A32: 0030
A33: 0030
G35: TOTAL 0030 | I35: =SUM(I28:I34) -> 0
D36: =INSERTDASH(C36,E36) -> 
A37: 0040
A38: 0040
A39: 0040
A40: 0040
A41: 0040
G43: TOTAL 0040 | I43: =SUM(I36:I42) -> 0
D44: =INSERTDASH(C44,E44) -> 
A45: 0050
A46: 0050
A47: 0050
A48: 0050
A49: 0050
G51: TOTAL 0050 | I51: =SUM(I44:I50) -> 0

Sheet 645.0120
G1: =UPPER(IF('Bid Items'!$C$1643="","Enter an Item DESCRIPTION in 'Bid Items' sheet",'Bid Items'!$C$1643)) -> GEOTEXTILE FABRIC TYPE HR
I4: =UPPER('Bid Items'!$B$1643) -> 645.0120
A5: CATEGORY | C5: STATION | D5: TO | E5: STATION | G5: LOCATION | I5: =UPPER('Bid Items'!$E$1643) -> SY | K5: REMARKS | T5: W = width of pipe plus 1' on both sides
D6: =INSERTDASH(C6,E6) -> 
A7: 0010 | G7: LT | I7: =P17 -> 7.777777778 | P7: 60 | Q7: inch | R7: pipe | T7: L=2*W or 10' min
A8: 0010 | G8: RT | I8: =P17 -> 7.777777778
A9: 0010
A10: 0010
A11: 0010 | M11: Width | P11: 7 | Q11: ft
A13: 0010 | M13: Length | P13: 10 | Q13: ft
A14: 0010
A15: 0010 | M15: Area | P15: =P11*P13 -> 70 | Q15: ft2
A16: 0010
A17: 0010 | P17: =P15/9 -> 7.777777778 | Q17: SY
G19: TOTAL 0010 | I19: =SUM(I6:I18) -> 15.55555556
A21: 0020
A22: 0020
A23: 0020
A24: 0020
A25: 0020
G27: TOTAL 0020 | I27: =SUM(I20:I26) -> 0
A29: 0030
A30: 0030
A31: 0030
A32: 0030
A33: 0030
G35: TOTAL 0030 | I35: =SUM(I28:I34) -> 0
D36: =INSERTDASH(C36,E36) -> 
A37: 0040
A38: 0040
A39: 0040
A40: 0040
A41: 0040
G43: TOTAL 0040 | I43: =SUM(I36:I42) -> 0
D44: =INSERTDASH(C44,E44) -> 
A45: 0050
A46: 0050
A47: 0050
A48: 0050
A49: 0050
G51: TOTAL 0050 | I51: =SUM(I44:I50) -> 0

Sheet 646.0106
G1: =UPPER(IF('Bid Items'!$C$1650="","Enter an Item DESCRIPTION in 'Bid Items' sheet",'Bid Items'!$C$1650)) -> PAVEMENT MARKING EPOXY 4-INCH
I4: =UPPER('Bid Items'!$B$1650) -> 646.0106 | M4: length
A5: CATEGORY | C5: STATION | D5: TO | E5: STATION | G5: LOCATION | I5: =UPPER('Bid Items'!$E$1650) -> LF | K5: REMARKS | M5: ft
D6: =INSERTDASH(C6,E6) -> 
A7: 0010 | C7: 4914 | D7: - | E7: 5454 | G7: LT | I7: =M7 -> 540 | K7: white | M7: =E7-C7 -> 540
A8: 0010 | C8: 4914 | D8: - | E8: 5454 | G8: RT | I8: =M8 -> 540 | K8: white | M8: =E8-C8 -> 540
A9: 0010 | C9: 4914 | D9: - | E9: 5454 | I9: =M9 -> 540 | K9: yellow - solid | M9: =E9-C9 -> 540
A10: 0010 | I10: =O12 -> 135 | K10: yellow - skips | M10: =E9-C9 -> 540 | O10: =M10/R10 -> 10.8 | P10: 1 | Q10: skip/ | R10: 50 | S10: ft | T10: 12.5 | U10: ft/skip
A11: 0010
O12: =O10*T10 -> 135 | P12: ft of yellow for skips
A13: 0010
A14: 0010
A15: 0010
A16: 0010
A17: 0010
G19: TOTAL 0010 | I19: =SUM(I6:I18) -> 1755
A21: 0020
A22: 0020
A23: 0020
A24: 0020
A25: 0020
G27: TOTAL 0020 | I27: =SUM(I20:I26) -> 0
A29: 0030
A30: 0030
A31: 0030
A32: 0030
A33: 0030
G35: TOTAL 0030 | I35: =SUM(I28:I34) -> 0
D36: =INSERTDASH(C36,E36) -> 
A37: 0040
A38: 0040
A39: 0040
A40: 0040
A41: 0040
G43: TOTAL 0040 | I43: =SUM(I36:I42) -> 0
D44: =INSERTDASH(C44,E44) -> 
A45: 0050
A46: 0050
A47: 0050
A48: 0050
A49: 0050
G51: TOTAL 0050 | I51: =SUM(I44:I50) -> 0

Sheet 648.0100
G1: =UPPER(IF('Bid Items'!$C$1829="","Enter an Item DESCRIPTION in 'Bid Items' sheet",'Bid Items'!$C$1829)) -> LOCATING NO-PASSING ZONES
I4: =UPPER('Bid Items'!$B$1829) -> 648.0100
A5: CATEGORY | C5: STATION | D5: TO | E5: STATION | G5: LOCATION | I5: =UPPER('Bid Items'!$E$1829) -> MI | K5: REMARKS
D6: =INSERTDASH(C6,E6) -> 
A7: 0010 | G7: Project | I7: 0.13
A8: 0010
A9: 0010
A10: 0010
A11: 0010
A13: 0010
A14: 0010
A15: 0010
A16: 0010
A17: 0010
G19: TOTAL 0010 | I19: =SUM(I6:I18) -> 0.13
A21: 0020
A22: 0020
A23: 0020
A24: 0020
A25: 0020
G27: TOTAL 0020 | I27: =SUM(I20:I26) -> 0
A29: 0030
A30: 0030
A31: 0030
A32: 0030
A33: 0030
G35: TOTAL 0030 | I35: =SUM(I28:I34) -> 0
D36: =INSERTDASH(C36,E36) -> 
A37: 0040
A38: 0040
A39: 0040
A40: 0040
A41: 0040
G43: TOTAL 0040 | I43: =SUM(I36:I42) -> 0
D44: =INSERTDASH(C44,E44) -> 
A45: 0050
A46: 0050
A47: 0050
A48: 0050
A49: 0050
G51: TOTAL 0050 | I51: =SUM(I44:I50) -> 0

Sheet 650.6000
G1: =UPPER(IF('Bid Items'!$C$1854="","Enter an Item DESCRIPTION in 'Bid Items' sheet",'Bid Items'!$C$1854)) -> CONSTRUCTION STAKING PIPE CULVERTS
I4: =UPPER('Bid Items'!$B$1854) -> 650.6000
A5: CATEGORY | C5: STATION | D5: TO | E5: STATION | G5: LOCATION | I5: =UPPER('Bid Items'!$E$1854) -> EACH | K5: REMARKS
D6: =INSERTDASH(C6,E6) -> 
A7: 0010 | E7: 5184 | I7: 1
A8: 0010
A9: 0010
A10: 0010
A11: 0010
A13: 0010
A14: 0010
A15: 0010
A16: 0010
A17: 0010
G19: TOTAL 0010 | I19: =SUM(I6:I18) -> 1
A21: 0020
A22: 0020
A23: 0020
A24: 0020
A25: 0020
G27: TOTAL 0020 | I27: =SUM(I20:I26) -> 0
A29: 0030
A30: 0030
A31: 0030
A32: 0030
A33: 0030
G35: TOTAL 0030 | I35: =SUM(I28:I34) -> 0
D36: =INSERTDASH(C36,E36) -> 
A37: 0040
A38: 0040
A39: 0040
A40: 0040
A41: 0040
G43: TOTAL 0040 | I43: =SUM(I36:I42) -> 0
D44: =INSERTDASH(C44,E44) -> 
A45: 0050
A46: 0050
A47: 0050
A48: 0050
A49: 0050
G51: TOTAL 0050 | I51: =SUM(I44:I50) -> 0

Sheet 690.0150
G1: =UPPER(IF('Bid Items'!$C$2214="","Enter an Item DESCRIPTION in 'Bid Items' sheet",'Bid Items'!$C$2214)) -> SAWING ASPHALT
I4: =UPPER('Bid Items'!$B$2214) -> 690.0150
A5: CATEGORY | C5: STATION | D5: TO | E5: STATION | G5: LOCATION | I5: =UPPER('Bid Items'!$E$2214) -> LF | K5: REMARKS
D6: =INSERTDASH(C6,E6) -> 
A7: 0010 | E7: 4914 | I7: 30
A8: 0010 | E8: 5454 | I8: 30
A9: 0010
A10: 0010
A11: 0010
A13: 0010
A14: 0010
A15: 0010
A16: 0010
A17: 0010
G19: TOTAL 0010 | I19: =SUM(I6:I18) -> 60
A21: 0020
A22: 0020
A23: 0020
A24: 0020
A25: 0020
G27: TOTAL 0020 | I27: =SUM(I20:I26) -> 0
A29: 0030
A30: 0030
A31: 0030
A32: 0030
A33: 0030
G35: TOTAL 0030 | I35: =SUM(I28:I34) -> 0
D36: =INSERTDASH(C36,E36) -> 
A37: 0040
A38: 0040
A39: 0040
A40: 0040
A41: 0040
G43: TOTAL 0040 | I43: =SUM(I36:I42) -> 0
D44: =INSERTDASH(C44,E44) -> 
A45: 0050
A46: 0050
A47: 0050
A48: 0050
A49: 0050
G51: TOTAL 0050 | I51: =SUM(I44:I50) -> 0

Sheet SPV.0005
G1: =UPPER(IF('Bid Items'!$C$2224="","Enter an Item DESCRIPTION in 'Bid Items' sheet",'Bid Items'!$C$2224)) -> SPECIAL
I4: =UPPER('Bid Items'!$B$2224) -> SPV.0005 | M4: Length | N4: Width | O4: Area | Q4: ****** I assumed a 24' ROW
A5: CATEGORY | C5: STATION | D5: TO | E5: STATION | G5: LOCATION | I5: =UPPER('Bid Items'!$E$2224) -> ACRE | K5: REMARKS | M5: ft | N5: ft | O5: ft2
D6: =INSERTDASH(C6,E6) -> 
A7: 0010 | C7: 4914 | D7: - | E7: 5454 | G7: LT | I7: =O7/43560 -> 0.2107438017 | M7: =E7-C7 -> 540 | N7: 17 | O7: =M7*N7 -> 9180
A8: 0010 | C8: 4914 | D8: - | E8: 5454 | G8: RT | I8: =O7/43560 -> 0.2107438017
A9: 0010
A10: 0010
A11: 0010
A13: 0010
A14: 0010
A15: 0010
A16: 0010
A17: 0010
G19: TOTAL 0010 | I19: =SUM(I6:I18) -> 0.4214876033
A21: 0020
A22: 0020
A23: 0020
A24: 0020
A25: 0020
G27: TOTAL 0020 | I27: =SUM(I20:I26) -> 0
A29: 0030
A30: 0030
A31: 0030
A32: 0030
A33: 0030
G35: TOTAL 0030 | I35: =SUM(I28:I34) -> 0
D36: =INSERTDASH(C36,E36) -> 
A37: 0040
A38: 0040
A39: 0040
A40: 0040
A41: 0040
G43: TOTAL 0040 | I43: =SUM(I36:I42) -> 0
D44: =INSERTDASH(C44,E44) -> 
A45: 0050
A46: 0050
A47: 0050
A48: 0050
A49: 0050
G51: TOTAL 0050 | I51: =SUM(I44:I50) -> 0

Sheet CompSheet (hidden)
Q2: =G53 -> Description
A5: CAT. | D5: STATION TO STATION | N5: LOCATION | U5: =AA53 -> Unit | Z5: REMARKS
A48: Project/Structure No. | O48: Highway No. | S48: County | X48: Computations by | AG48: Date
A49: =MID('Bid Items'!B3,16,100) -> 8949-04-78 | O49: =RIGHT('Bid Items'!B6,LEN('Bid Items'!B6)-15) -> USH 12 | S49: =RIGHT('Bid Items'!B7,LEN('Bid Items'!B7)-15) -> ST. CROIX | X49: =MID('Bid Items'!C2,19,100) -> RICHARD SHERMO | AE49: =IF('Bid Items'!F2<>"",TEXT('Bid Items'!F2, "m/dd/yyyy"),TEXT(NOW(),"m/dd/yyyy")) -> 6/09/2015
A50: Project Title/Limits | Z50: Checked by | AG50: Date
A51: =CONCATENATE(MID('Bid Items'!B4,16,100)," (",MID( 'Bid Items'!B5,16,100),")") -> BALDWIN - MENOMONIE (CULVERTS C-55-0037, 0038, & 0039)
A52: Item/Description/Unit | AD52: Sheet | AG52: of
A53: Item | G53: Description | Z53: ( | AA53: Unit | AC53: )

Sheet Costs Report (hidden)
A1: ='Bid Items'!C1 -> ENGINEER'S ESTIMATE / Q2P WORKBOOK | E1: PRELIMINARY COST
A2: ='Bid Items'!C2 -> PROJECT MANAGER: RICHARD SHERMO | E2: ='Bid Items'!F2 -> 2015-06-09 | F2: =Proj_Total -> 
A4: CONST. I.D.: 9999-99-99
A5: TITLE: TEST 2003.1
A6: LIMITS: WISCONSIN STATE LINES
A7: HIGHWAY: IH94
A8: COUNTY: VARIOUS
A9: PROGRAM CODE: 302 MAJOR HIGHWAY DEVELOPMENT
A10: CONCEPT CODE: RECSTE RECONSTRUCTION, EXPANSION
A12: NET C/L MILES: 310.500
A13: ITEMS | B13: ='Bid Items'!C12 -> ITEM DESCRIPTION | C13: ='Bid Items'!D12 -> QUANTITY | D13: ='Bid Items'!E12 -> UNIT | E13: ='Bid Items'!F12 -> UNIT PRICE | F13: ='Bid Items'!G12 -> COST

Sheet MiscellaneousQTYSheet (hidden)
G1: ITEM DESCRIPTION
I4: ITEM NUMBER
A5: CAT. | C5: STATION | D5: TO | E5: STATION | G5: LOCATION | I5: UNIT | K5: REMARKS
D6: =INSERTDASH(C6,E6) -> 
A7: 0010 | D7: =INSERTDASH(C7,E7) -> 
A8: 0010
A9: 0010
A10: 0010
A11: 0010
A13: 0010
A14: 0010
A15: 0010
A16: 0010
A17: 0010 | D17: =INSERTDASH(C17,E17) -> 
G19: TOTAL 0010 | I19: =SUM(I6:I18) -> 0
A21: 0020
A22: 0020
A23: 0020
A24: 0020
A25: 0020
A27: 0020
A28: 0020
A29: 0020
A30: 0020
A31: 0020 | D31: =INSERTDASH(C31,E31) -> 
G34: TOTAL 0020 | I34: =SUM(I20:I33) -> 0
A36: 0030
A37: 0030
A38: 0030
A39: 0030
A40: 0030
A42: 0030
A43: 0030
A44: 0030
A45: 0030
A46: 0030 | D46: =INSERTDASH(C46,E46) -> 
G48: TOTAL 0030 | I48: =SUM(I35:I47) -> 0
D49: =INSERTDASH(C49,E49) -> 
A50: 0040
A51: 0040
A52: 0040
A53: 0040
A54: 0040
A56: 0040 | D56: =INSERTDASH(C56,E56) -> 
A57: 0040
A58: 0040
A59: 0040
A60: 0040
G62: TOTAL 0040 | I62: =SUM(I49:I61) -> 0
D63: =INSERTDASH(C63,E63) -> 
A64: 0050
A65: 0050
A66: 0050
A67: 0050
A68: 0050
A70: 0050 | D70: =INSERTDASH(C70,E70) -> 
A71: 0050
A72: 0050
A73: 0050
A74: 0050
G76: TOTAL 0050 | I76: =SUM(I63:I75) -> 0

Sheet MiscellaneousQTYSheet D5 (hidden)
G1: ITEM DESCRIPTION
I4: ITEM NUMBER
A5: CATEGORY | C5: STATION | D5: TO | E5: STATION | G5: LOCATION | I5: UNIT | K5: REMARKS
D6: =INSERTDASH(C6,E6) -> 
A7: 0010
A8: 0010
A9: 0010
A10: 0010
A11: 0010
A13: 0010
A14: 0010
A15: 0010
A16: 0010
A17: 0010 | D17: =INSERTDASH(C17,E17) -> 
G19: TOTAL 0010 | I19: =SUM(I6:I18) -> 0
A21: 0020
A22: 0020
A23: 0020
A24: 0020
A25: 0020
G27: TOTAL 0020 | I27: =SUM(I20:I26) -> 0
A29: 0030
A30: 0030
A31: 0030
A32: 0030
A33: 0030
G35: TOTAL 0030 | I35: =SUM(I28:I34) -> 0
D36: =INSERTDASH(C36,E36) -> 
A37: 0040
A38: 0040
A39: 0040
A40: 0040
A41: 0040
D42: =INSERTDASH(C42,E42) -> 
G43: TOTAL 0040 | I43: =SUM(I36:I42) -> 0
D44: =INSERTDASH(C44,E44) -> 
A45: 0050
A46: 0050
A47: 0050
A48: 0050
A49: 0050
D50: =INSERTDASH(C50,E50) -> 
G51: TOTAL 0050 | I51: =SUM(I44:I50) -> 0

Sheet Help Window (hidden)
A1: 1. Starting the Program (MUST ENABLE MACROS - choose the "Low" setting).
A2: The very first time you run the program, you will be prompted to enter a Construction Project I.D. You can enter the project I.D. with or without the dashes (1234-45-70 or 12345670). The program will enter the following as a default, or choose a path the fits your system.
A4: "d:\projects\misq\12345670\12345670 misq.xls"
A6: 2. Project Setup (if you cancelled out of step 1 above).
A7: To complete the project setup for your particular project, on the drop-down menu, select "Project" -> "Project Setup". Then follow the popup input windows.
A9: Example below, uses information from FIIPS or Concept Definition Report (CDR):
A11: Designer: Tou X. Yang
A12: Construction I.D: 1234-56-70
A13: Title: Durand - Menomonie Road
A14: Limits: Red Cedar River - 28th Ave.
A15: Highway: STH 25
A16: County: Dunn County
A17: Program Code: 3230 STH-MAJOR HWY DEVELOPMENT-CONSTRUCTION
A18: Net Centerline Length (miles): 12.50
A20: Near the bottom of sheet1 "Bid Items" fill in the information for Categories and Funding. Set-up categories prior to creating sheets. This workbook tracks subtotals by category and prints reports based on these categories. These categories may be revised at anytime.
A22: 3. Creating Computation or Miscellaneous Quantity Sheets.
A23: In order to create a Comp Sheet or Misc. Qty Sheet for a particular item number, you must:
A25: a. "Mark" that item by entering an "x" in Column A next to the item. Then on the drop-down menu, select "Misc Qty Sheets" -> "Create multiple miscellaneous…" command to generate sheets for all the "marked" items.
A27: or
A28: b. Use the "Insert one or more miscellaneous..." or "Insert Comp Sheet(s)" command to insert the sheet(s).
A30: The Computation Sheets are mainly used for engineering computation and sketching. The one advantage in using these sheets is that all project information are printed on the form so you don't have to hand write them in on each sheet/item. Their use is optional.
A32: The Miscellaneous Quantity Sheets, on the other hand, are where all quantities and notes are entered. These will then be tied to the Engineering Estimate and ultimately be exported into Trns-Port for Letting. These sheets will also be sent to CADDS to plot on miscellaneous quantity sheets.
A34: 4. Entering Data and Editing Miscellaneous Qty Sheets.
A35: There are five fields in the Miscellaneous Qty Sheet that are linked to/from the Engineering Estimate or "Bid Items" sheet. These are Item Description, Item Number, Item Unit, Quantity Total (number) and Category Total ("Total 00n0" where n0 is the category number).
A37: You may customize these sheets to suit your needs, but be careful NOT to delete the above links. The most critical link is the "Total 00n0" because the total quantity amount associates with that category (n0) is found by searching for the test "Total 00n0".
A39: 5. Inserting Comp/Miscellaneous Qty Sheets.
A40: These commands can be used at anytime to create an item sheet(s). They are most useful when you have previously created some sheets and you want to insert one or more item sheets. To insert more than one item sheet, the item numbers should be separated by spaces or commas.
A42: 6. Saving Your Work.
A43: There are two types of files that you may want to save. The first file type is the main Excel file or Project File (12345670 misq.xls), which contains all the work - the Engineering Estimate and all Miscellaneous Qty Sheets. To save the Project File, use the "Project" -> "Save Project" command.
A45: Note: The above command will save the file to the District 6 preferred location of "D:\Projects\Misq\12345670\". If you wish to save the file to a different location, use the standard Excel File-Save command.
A47: The second file type is the ASCII files using the "SAVE Sheets (*.prn)" -> "Save all sheets into individual files..." from the drop-down menu, which each Miscellaneous Qty Sheet is saved into an individual file in a text format. For example, the sheet 108.4400 is saved as 108.4400.prn.
A49: 7. Exporting file to CADDS or (Use D5 Method PPT, see page 14 of Francis Schelfhout's guide).
A50: Once you finalize the miscellaneous quantities for your project and are ready to produce plan sheets for them, use the "Save Sheets (*.prn)" -> "Save all sheets into one file (to be given to CADDS)" command on the drop-down menu to save all the Miscellaneous Qty Sheets into a file named "CADDS.prn"
A52: 8. Printing Your Work.
A53: Printing the Estimate: To print a detail the estimate, use the "PRINT" -> "Print Full Estimate (Formatted) command. This report will give a printout of the estimate by category.
A55: Note: If you don't have the categories set up per article 2 above, detail printing will not be possible.
A57: Printing individual item sheet: To print one or two Miscellaneous Qty Sheets, select those sheets and print them through the standard Excel command. To print the entire workbook of all the Miscellaneous Qty Sheets, use the "PRINT" -> "All Miscellaneous Quantity Sheets" command.
A59: 9. Exporting Engineering Estimate to TRNS-PORT for Letting.
A60: (Review the project for accuracy, compare with Estimator)
A61: This program doesn't export the Estimate directly into TRNS-PORT, it exports the Estimate into an ASCII file which can be uploaded into TRNS-PORT. To create this file, from the drop-down menu, select "Pass File (Pjiport.dat)" -> "Create Pjiport.dat file". The file will be saved on the "W" drive as follows:
A63: "W:\Design\Estimate\Projects\Pjiport.dat"
A65: 10. Unit Price Resources (drop-down menu).
A67: Statewide Historical Bid Data is used to access the combined Bid Prices of the 3 Low Bids in the past 18 months.
A69: Letting Reports is used to access the last 3 monthly lettings.
A71: Run ESTIMATOR opens the HIGHEST.EXE (open the file "00E_UNIT.HE") program to check bid history for a particular item. This command will automatically supply the logon ID and password to ESTIMATOR. If it fails to do that, use d6 for both logon ID and password.
A73: Run TSO opens Mainframe SESSION to access statewide data base for unit prices. See FDM 19-5-20 for TSO settings and as shown below.
A75: Copy Prices From Another Project lets you copy prices from another project estimate. It will compare the new items to the old items and if there's a match, it will copy the unit price to the new estimate. Note you must have the archived project opened for this to work.
A77: 9. Pay Plan Quantity Designation.
A78: When choosing to designate an item for Pay Plan Quantity, don't add the "**P**" to the Description use the drop-down menu instead…"Data" -> "Pay Plan Quantity For This Item"
A80: Revised: 9/28/2004
